Workbook

Sheet Revisão
B1: Taxas Equivalentes
B3: DIAS ÚTEIS | F3: DIAS CORRIDOS | J3: Taxa Nominal Mensal | M3: 1 | N3: Calcule as taxas efetivas no período para:
B5: taxa ano | C5: =Q5 -> 8.5 | D5: %a.a. | F5: taxa ano | G5: =Q6 -> 11.3 | H5: %a.a. | J5: Tx nominal | K5: =Q7 -> 9.2 | L5: %a.a. | N5: Du 252 | O5: 123 | P5: du | Q5: 8.5 | R5: % a.a.
B6: prazo | C6: =O5 -> 123 | D6: du | F6: prazo | G6: =O6 -> 450 | H6: dc | J6: prazo | K6: =O7 -> 135 | L6: dc | N6: DC 360 | O6: 450 | P6: dc | Q6: 11.3 | R6: % a.a.
J7: Tx ef. Semestral | K7: =K5/2 -> 4.6 | N7: TX nominal semestral | O7: 135 | P7: dc | Q7: 9.2 | R7: % a.a.
C8: =((1+C5/100)^(C6/252)-1)*100 -> 4.062219967 | D8: ="% em "&C6&" du" -> % em 123 du | G8: =((1+G5/100)^(G6/360)-1)*100 -> 14.31914177 | H8: ="% em "&G6&" dc" -> % em 450 dc
K9: =((1+K7/100)^(K6/180)-1)*100 -> 3.430533165 | L9: ="% em "&K6&" dc" -> % em 135 dc
B12: Taxa de instrumentos pós-fixados | M12: 2 | N12: Calcule as taxas pré e pósfixadas para um DI Futuro de 15,73 e prêmio de 12 pontos base.
N13: Considere as seguintes variações de indexadores:
B14: BM&F | C14: 15.73 | D14: %a.a. | N14: SELIC | O14: 13.35 | P14: %
B15: Prêmio | C15: 12 | D15: p.b. | N15: IPCA | O15: 9.5 | P15: %
N16: DOLAR | O16: 10 | P16: %
B17: PRÉ | C17: 0 | E17: SELIC | F17: =O14 -> 13.35 | G17: %a.a. | H17: IPCA | I17: =O15 -> 9.5 | J17: %a.a. | K17: DÓLAR | L17: =O16 -> 10 | M17: %a.a.
B18: Tx pré | C18: =C14+C15/100 -> 15.85 | D18: %a.a. | E18: Ágio/Deság. | F18: =((1+$C$18/100)/(1+F17/100)-1)*100 -> 2.205558006 | H18: Cp. IPCA | I18: =((1+$C$18/100)/(1+I17/100)-1)*100 -> 5.799086758 | K18: Cp. Cambial | L18: =((1+$C$18/100)/(1+L17/100)-1)*100 -> 5.318181818
B21: Taxa Ímplicita do mercado futuro | M21: 3 | N21: Calcule as taxas implícitas para:
F22: PF | H22: Respostas | I22: c
F23: =VLOOKUP(I22,M24:P26,3) -> 95 | N23: PV | O23: PF | P23: DU
C24: Tx. Imp. | D24: =((F23/B29)^(252/F27)-1)*100 -> -14.1071444 | E24: %a.a. | H24: a | I24: 49.27 | M24: a | N24: 35 | O24: 40 | P24: 84
H25: b | I25: 5.14 | M25: b | N25: 90 | O25: 100 | P25: 530
F26: Prazo | H26: c | I26: -14.11 | M26: c | N26: 100 | O26: 95 | P26: 85
F27: =VLOOKUP(I22,M24:P26,4) -> 85 | G27: du
B28: PV
B29: =VLOOKUP(I22,M24:P26,2) -> 100

Sheet Flat Forward
B1: Cálculo da taxa a termo | G1: Calcule os termos: | J1: Calcule as taxas equivalentes (%a.a.) para:
A3: tc | B3: tl | C3: DU | D3: Tx Spot | E3: Termo | G3: T2 | H3: =E6 -> 14.99 | J3: 30 | K3: 14.36
A4: a | C4: 19 | D4: 14.26 | E4: =D4 -> 14.26 | G4: T3 | H4: =E7 -> 15.19 | J4: 60 | K4: 14.6
A5: b | B5: a | C5: 40 | D5: 14.4 | E5: 14.53 | F5: T1 | G5: T4 | H5: 15.5 | J5: 90 | K5: 14.82
A6: c | B6: b | C6: 62 | D6: 14.61 | E6: 14.99 | F6: T2 | J6: 75 | K6: 14.71
A7: d | B7: c | C7: 82 | D7: 14.75 | E7: 15.19 | F7: T3
A8: e | B8: d | C8: 101 | D8: 14.89 | E8: 15.5 | F8: T4
G15: Tx. Curta | I15: Termo
G16: Tx. Longa
G21: Ativo
G22: Tx. Curta | I22: Termo
G26: Termo | H26: c | L26: Taxa XX dias úteis | M26: 75
I28: DU | N28: DU
G29: Tx. Curta | H29: =VLOOKUP(H26,A4:D8,4) -> 14.61 | I29: =VLOOKUP(H26,A4:D8,3) -> 62 | L29: Tx. Curta | M29: =VLOOKUP(H26,A4:E8,4) -> 14.61 | N29: =VLOOKUP(H26,A4:E8,3) -> 62
G31: Tx. Longa | H31: =VLOOKUP(H26,B4:D8,3) -> 14.75 | I31: =VLOOKUP(H26,B4:D8,2) -> 82 | L31: =CONCATENATE("Taxa (",M26,")du") -> Taxa (75)du | M31: =ROUND(((((1+M33/100)^(O33/252))*((1+H29/100)^(I29/252)))^(252/(M26))-1)*100,2) -> 14.71 | N31: =M26 -> 75
G33: Termo | H33: =ROUND(((((1+H31/100)^(I31/252))/((1+H29/100)^(I29/252)))^(252/(J33))-1)*100,2) -> 15.19 | J33: =I31-I29 -> 20 | L33: Termo | M33: =VLOOKUP(H26,B4:E8,4) -> 15.19 | O33: =M26-N29 -> 13

Sheet Spline
A1: DU | B1: TX | F1: DU | G1: SPLINE
A2: 19 | B2: =VLOOKUP(Spline!A2,ETTJ!$C$2:$D$33,2) -> 14.26 | F2: 1 | G2: =Cubic_Spline($A$2:$A$12,$B$2:$B$12,F2) -> 14.13029943
A3: 82 | B3: =VLOOKUP(Spline!A3,ETTJ!$C$2:$D$33,2) -> 14.75 | F3: 2 | G3: =Cubic_Spline($A$2:$A$12,$B$2:$B$12,F3) -> 14.13759875
A4: 143 | B4: =VLOOKUP(Spline!A4,ETTJ!$C$2:$D$33,2) -> 15.31 | F4: 3 | G4: 14.14488206
A5: 251 | B5: =VLOOKUP(Spline!A5,ETTJ!$C$2:$D$33,2) -> 15.72 | F5: 4 | G5: 14.1521503
A6: 437 | B6: =VLOOKUP(Spline!A6,ETTJ!$C$2:$D$33,2) -> 15.89 | F6: 5 | G6: 14.1594025
A7: 623 | B7: =VLOOKUP(Spline!A7,ETTJ!$C$2:$D$33,2) -> 15.92 | F7: 6 | G7: 14.16664533
A8: 812 | B8: =VLOOKUP(Spline!A8,ETTJ!$C$2:$D$33,2) -> 15.89 | F8: 7 | G8: 14.1738721
A9: 1001 | B9: =VLOOKUP(Spline!A9,ETTJ!$C$2:$D$33,2) -> 15.83 | F9: 8 | G9: 14.18108948
A10: 1188 | B10: =VLOOKUP(Spline!A10,ETTJ!$C$2:$D$33,2) -> 15.76 | F10: 9 | G10: 14.1882965
A11: 1377 | B11: =VLOOKUP(Spline!A11,ETTJ!$C$2:$D$33,2) -> 15.64 | F11: 10 | G11: 14.1954941
A12: 1818 | B12: =VLOOKUP(Spline!A12,ETTJ!$C$2:$D$33,2) -> 15.38 | F12: 11 | G12: 14.20268131
F13: 12 | G13: 14.20986385
A14: 1100 | B14: =VLOOKUP(Spline!A14,ETTJ!$C$2:$D$33,2) -> 15.81 | F14: 13 | G14: 14.21703789
F15: 14 | G15: 14.22420818
F16: 15 | G16: 14.23137091
F17: 16 | G17: 14.23853273
F18: 17 | G18: 14.24568981
F19: 18 | G19: 14.25284597
F20: 19 | G20: 14.26000023
F21: 20 | G21: 14.26715544
F22: 21 | G22: 14.27431064
F23: 22 | G23: 14.28146868
F24: 23 | G24: 14.28862955
F25: 24 | G25: 14.29579323
F26: 25 | G26: 14.30296257
F27: 26 | G27: 14.31013756
F28: 27 | G28: 14.3173182
F29: 28 | G29: 14.32450732
F30: 29 | G30: 14.33170491
F31: 30 | G31: 14.33891098
F32: 31 | G32: 14.34612836
F33: 32 | G33: 14.35335703
F34: 33 | G34: 14.36059701
F35: 34 | G35: 14.36785112
F36: 35 | G36: 14.37511936
F37: 36 | G37: 14.38240171
F38: 37 | G38: 14.38970103
F39: 38 | G39: 14.39701731
F40: 39 | G40: 14.40435052
F41: 40 | G41: 14.41170353
F42: 41 | G42: 14.41907632
F43: 42 | G43: 14.42646887
F44: 43 | G44: 14.43388404
F45: 44 | G45: 14.44132182
F46: 45 | G46: 14.44878219
F47: 46 | G47: 14.456268
F48: 47 | G48: 14.46377876
F49: 48 | G49: 14.47131638
F50: 49 | G50: 14.47888083
F51: 50 | G51: 14.48647354
F52: 51 | G52: 14.49409545
F53: 52 | G53: 14.5017475
F54: 53 | G54: 14.50943062
F55: 54 | G55: 14.51714625
F56: 55 | G56: 14.52489437
F57: 56 | G57: 14.5326764
F58: 57 | G58: 14.54049375
F59: 58 | G59: 14.54834642
F60: 59 | G60: 14.55623582
F61: 60 | G61: 14.56416337
F62: 61 | G62: 14.57212906
F63: 62 | G63: 14.58013431
F64: 63 | G64: 14.58818054
F65: 64 | G65: 14.59626773
F66: 65 | G66: 14.60439755
F67: 66 | G67: =Cubic_Spline($A$2:$A$12,$B$2:$B$12,F67) -> 14.61257045
F68: 67 | G68: 14.62078762
F69: 68 | G69: 14.62905024
F70: 69 | G70: 14.63735878
F71: 70 | G71: 14.64571464
F72: 71 | G72: 14.65411854
F73: 72 | G73: 14.66257118
F74: 73 | G74: 14.67107398
F75: 74 | G75: 14.67962752
F76: 75 | G76: 14.68823287
F77: 76 | G77: 14.69689096
F78: 77 | G78: 14.70560273
F79: 78 | G79: 14.7143692
F80: 79 | G80: 14.72319117
F81: 80 | G81: 14.73206969
F82: 81 | G82: 14.74100565
F83: 82 | G83: 14.75
F84: 83 | G84: 14.75905321
F85: 84 | G85: 14.76816214
F86: 85 | G86: 14.77732698
F87: 86 | G87: 14.78654221
F88: 87 | G88: 14.79580515
F89: 88 | G89: 14.80511506
F90: 89 | G90: 14.81446832
F91: 90 | G91: 14.82386224
F92: 91 | G92: 14.83329418
F93: 92 | G93: 14.84276147
F94: 93 | G94: 14.85226047
F95: 94 | G95: 14.8617914
F96: 95 | G96: 14.87134872
F97: 96 | G97: 14.88092977
F98: 97 | G98: 14.89053378
F99: 98 | G99: 14.90015715
F100: 99 | G100: 14.90979719
F101: 100 | G101: 14.91945125
F102: 101 | G102: 14.92911667
F103: 102 | G103: 14.93878981
F104: 103 | G104: 14.94846993
F105: 104 | G105: 14.95815435
F106: 105 | G106: 14.96783755
F107: 106 | G107: 14.97751972
F108: 107 | G108: 14.98719725
F109: 108 | G109: 14.99686747
F110: 109 | G110: 15.00652771
F111: 110 | G111: 15.01617531
F112: 111 | G112: 15.02580664
F113: 112 | G113: 15.03542143
F114: 113 | G114: 15.0450151
F115: 114 | G115: 15.05458547
F116: 115 | G116: 15.06412938
F117: 116 | G117: 15.07364513
F118: 117 | G118: 15.08312958
F119: 118 | G119: 15.09257958
F120: 119 | G120: 15.10199389
F121: 120 | G121: 15.11136795
F122: 121 | G122: 15.12070052
F123: 122 | G123: 15.12998845
F124: 123 | G124: 15.1392286
F125: 124 | G125: 15.14841926
F126: 125 | G126: 15.15755729
F127: 126 | G127: 15.16664002
F128: 127 | G128: 15.17566431
F129: 128 | G129: 15.18462868
F130: 129 | G130: 15.19352928
F131: 130 | G131: =Cubic_Spline($A$2:$A$12,$B$2:$B$12,F131) -> 15.20236415
F132: 131 | G132: 15.2111304
F133: 132 | G133: 15.21982511
F134: 133 | G134: 15.22844586
F135: 134 | G135: 15.23699022
F136: 135 | G136: 15.24545505
F137: 136 | G137: 15.25383816
F138: 137 | G138: 15.26213664
F139: 138 | G139: 15.2703476
F140: 139 | G140: 15.27846872
F141: 140 | G141: 15.28649733
F142: 141 | G142: 15.29443048
F143: 142 | G143: 15.30226576
F144: 143 | G144: 15.31000042
F145: 144 | G145: 15.31763176
F146: 145 | G146: 15.32516162
F147: 146 | G147: 15.33258995
F148: 147 | G148: 15.33991758
F149: 148 | G149: 15.34714447
F150: 149 | G150: 15.35427242
F151: 150 | G151: 15.36130419
F152: 151 | G152: 15.36823687
F153: 152 | G153: 15.37507416
F154: 153 | G154: 15.38181504
F155: 154 | G155: 15.38846229
F156: 155 | G156: 15.3950158
F157: 156 | G157: 15.40147553
F158: 157 | G158: 15.4078442
F159: 158 | G159: 15.41412083
F160: 159 | G160: 15.4203091
F161: 160 | G161: 15.4264061
F162: 161 | G162: 15.4324146
F163: 162 | G163: 15.43833641
F164: 163 | G164: 15.44417146
F165: 164 | G165: 15.4499206
F166: 165 | G166: 15.45558378
F167: 166 | G167: 15.46116279
F168: 167 | G168: 15.46666042
F169: 168 | G169: 15.47207373
F170: 169 | G170: 15.47740643
F171: 170 | G171: 15.48265751
F172: 171 | G172: 15.48782879
F173: 172 | G173: 15.49292302
F174: 173 | G174: 15.49793728
F175: 174 | G175: 15.50287528
F176: 175 | G176: 15.50773601
F177: 176 | G177: 15.51252222
F178: 177 | G178: 15.51723384
F179: 178 | G179: 15.52187079
F180: 179 | G180: 15.52643583
F181: 180 | G181: 15.53092889
F182: 181 | G182: 15.53534989
F183: 182 | G183: 15.53970159
F184: 183 | G184: 15.54398296
F185: 184 | G185: 15.54819678
F186: 185 | G186: 15.55234296
F187: 186 | G187: 15.55642238
F188: 187 | G188: 15.56043494
F189: 188 | G189: 15.56438248
F190: 189 | G190: 15.56826776
F191: 190 | G191: 15.57208785
F192: 191 | G192: 15.57584648
F193: 192 | G193: 15.5795426
F194: 193 | G194: 15.58317899
F195: 194 | G195: =Cubic_Spline($A$2:$A$12,$B$2:$B$12,F195) -> 15.58675557
F196: 195 | G196: 15.59027226
F197: 196 | G197: 15.5937323
F198: 197 | G198: 15.59713371
F199: 198 | G199: 15.60047927
F200: 199 | G200: 15.60376984
... 1619 more rows

Sheet ETTJ
A1: Ticker | B1: Data | C1: 2015-10-02 | D1: Last | E1: Settle Px | F1: Time | G1: Bid | H1: Ask | I1: Open Int | J1: Volume | K1: Yest Settle | L1: Curva | M1: Spline | N1: Termo
A2: ODX5 | B2: 2015-11-02 | C2: =NETWORKDAYS($C$1,B2,Feriados)-1 -> 19 | D2: 14.26 | E2: 14.293 | F2: 9:51:29 AM | G2: 14.255 | H2: 14.31 | I2: 1060356 | J2: 40 | K2: 14.293 | L2: =$S$28*C2^6+$S$29*C2^5+$S$30*C2^4+$S$31*C2^3+$S$32*C2^2+$S$33*C2+$S$41 -> 14.17390594 | M2: =Cubic_Spline($C$2:$C$33,$D$2:$D$33,C2) -> 14.26000023 | N2: =D2 -> 14.26
A3: ODZ5 | B3: 2015-12-01 | C3: =NETWORKDAYS($C$1,B3,Feriados)-1 -> 40 | D3: 14.4 | E3: 14.43 | F3: 9:52:57 AM | G3: 14.39 | H3: 14.4 | I3: 665740 | J3: 8530 | K3: 14.43 | L3: 14.41915439 | M3: =Cubic_Spline($C$2:$C$33,$D$2:$D$33,C3) -> 14.39999962 | N3: =ROUND(((((1+D3/100)^(C3/252))/((1+D2/100)^(C2/252)))^(252/(C3-C2))-1)*100,2) -> 14.53
A4: ODF6 | B4: 2016-01-04 | C4: 62 | D4: 14.61 | E4: 14.68 | F4: 9:55:15 AM | G4: 14.605 | H4: 14.61 | I4: 3487879 | J4: 29270 | K4: 14.68 | L4: 14.64623667 | M4: 14.60999966 | N4: =ROUND(((((1+D4/100)^(C4/252))/((1+D3/100)^(C3/252)))^(252/(C4-C3))-1)*100,2) -> 14.99
A5: ODG6 | B5: 2016-02-01 | C5: 82 | D5: 14.75 | E5: 14.85 | F5: 10/1/2015 | G5: 14.7 | H5: 14.79 | I5: 114485 | J5: 120 | K5: 14.775 | L5: 14.82851938 | M5: 14.75 | N5: 15.19
A6: ODH6 | B6: 2016-03-01 | C6: 101 | D6: 14.89 | E6: 15 | F6: 10/1/2015 | G6: 14.8 | H6: 14.985 | I6: 70015 | J6: 865 | K6: 14.9 | L6: 14.98225514 | M6: 14.89000034 | N6: 15.5
A7: ODJ6 | B7: 2016-04-01 | C7: 123 | D7: 15.14 | E7: 15.22 | F7: 9:52:23 AM | G7: 15.12 | H7: 15.14 | I7: 1096753 | J7: 165 | K7: 15.22 | L7: 15.13874371 | M7: 15.14000034 | N7: 16.29
A8: ODK6 | B8: 2016-05-02 | C8: 143 | D8: 15.31 | E8: 15.35 | F8: 10/1/2015 | G8: 15.185 | H8: #N/A N/A | I8: 52245 | J8: 2610 | K8: 15.25 | L8: 15.26282081 | M8: 15.31000042 | N8: 16.36
A9: ODM6 | B9: 2016-06-01 | C9: 164 | D9: 15.44 | E9: 15.505 | F9: 10/1/2015 | G9: #N/A N/A | H9: #N/A N/A | I9: 52145 | J9: 700 | K9: 15.38 | L9: 15.37629358 | M9: 15.43999958 | N9: 16.33 | AC9: DU | AD9: 2 | AE9: 9 | AF9: 14
A10: ODN6 | B10: 2016-07-01 | C10: 186 | D10: 15.54 | E10: 15.58 | F10: 9:55:20 AM | G10: 15.405 | H10: 15.44 | I10: 901521 | J10: 140 | K10: 15.58 | L10: 15.47856913 | M10: 15.53999996 | N10: =ROUND(((((1+D10/100)^(C10/252))/((1+D9/100)^(C9/252)))^(252/(C10-C9))-1)*100,2) -> 16.29 | AC10: =C4 -> 62 | AD10: =D4 -> 14.61 | AE10: ='091015'!S4 -> 14.32000699 | AF10: ='141015'!S4 -> 14.3500143
A11: ODV6 | B11: 2016-10-03 | C11: 251 | D11: 15.72 | E11: 15.7 | F11: 10/1/2015 | G11: 15.54 | H11: 15.595 | I11: 375298 | J11: 37720 | K11: 15.57 | L11: 15.6985394 | M11: 15.72000027 | N11: 16.24 | AC11: =C12 -> 313 | AD11: =D12 -> 15.81 | AE11: ='091015'!S12 -> 15.55999502 | AF11: ='141015'!S12 -> 15.590004
A12: ODF7 | B12: 2017-01-02 | C12: 313 | D12: 15.81 | E12: 15.77 | F12: 9:58:24 AM | G12: 15.61 | H12: 15.62 | I12: 1892891 | J12: 44035 | K12: 15.77 | L12: 15.82169185 | M12: 15.81000042 | N12: 16.18 | AC12: =C16 -> 562 | AD12: =D16 -> 15.92 | AE12: ='091015'!S16 -> 15.93999785 | AF12: ='141015'!S16 -> 16.00999677
A13: ODJ17 | B13: 2017-04-03 | C13: 376 | D13: 15.86 | E13: 15.87 | F13: 10/1/2015 | G13: 15.68 | H13: 15.71 | I13: 81079 | J13: 250 | K13: 15.7 | L13: 15.88864198 | M13: 15.85999966 | N13: 16.11 | AC13: =C20 -> 812 | AD13: =D20 -> 15.89 | AE13: ='091015'!S20 -> 15.94999827 | AF13: ='141015'!S20 -> 16.10000064
A14: ODN17 | B14: 2017-07-03 | C14: 437 | D14: 15.89 | E14: 15.94 | F14: 9:55:20 AM | G14: 15.74 | H14: 15.76 | I14: 524309 | J14: 1055 | K14: 15.94 | L14: 15.91764567 | M14: 15.89000034 | N14: 16.08
A15: ODV17 | B15: 2017-10-02 | C15: 501 | D15: 15.91 | E15: 15.96 | F15: 10/1/2015 | G15: 15.76 | H15: 15.78 | I15: 160420 | J15: 3425 | K15: 15.82 | L15: 15.9256818 | M15: 15.90999985 | N15: 16.05
A16: ODF18 | B16: 2018-01-02 | C16: 562 | D16: 15.92 | E16: 15.96 | F16: 9:58:29 AM | G16: 15.75 | H16: 15.76 | I16: 959185 | J16: 29555 | K16: 15.96 | L16: 15.92201763 | M16: 15.92000008 | N16: 16
A17: ODJ18 | B17: 2018-04-02 | C17: 623 | D17: 15.92 | E17: 15.965 | F17: 10/1/2015 | G17: 15.73 | H17: 15.78 | I17: 79145 | J17: 1900 | K17: 15.87 | L17: 15.91353122 | M17: 15.92000008 | N17: 15.92
A18: ODN18 | B18: 2018-07-02 | C18: 686 | D18: 15.92 | E18: 15.97 | F18: 9:56:59 AM | G18: 15.76 | H18: 15.78 | I18: 417659 | J18: 5135 | K18: 15.97 | L18: 15.90331888 | M18: 15.92000008 | N18: 15.92
A19: ODV18 | B19: 2018-10-01 | C19: 750 | D19: 15.91 | E19: 15.92 | F19: 10/1/2015 | G19: 15.7 | H19: 15.75 | I19: 20564 | J19: 1030 | K19: 15.86 | L19: 15.89301169 | M19: 15.90999985 | N19: 15.8
A20: ODF19 | B20: 2019-01-02 | C20: 812 | D20: 15.89 | E20: 15.89 | F20: 9:58:24 AM | G20: 15.68 | H20: 15.69 | I20: 849806 | J20: 15835 | K20: 15.89 | L20: 15.88311526 | M20: 15.89000034 | N20: 15.65
A21: ODJ19 | B21: 2019-04-01 | C21: 873 | D21: 15.87 | E21: 15.863 | F21: 10/1/2015 | G21: 15.63 | H21: 15.67 | I21: 29733 | J21: 110 | K21: 15.799 | L21: 15.87262638 | M21: 15.86999989 | N21: 15.6
A22: ODN19 | B22: 2019-07-01 | C22: 935 | D22: 15.85 | E22: 15.84 | F22: 9:56:33 AM | G22: 15.62 | H22: 15.65 | I22: 220473 | J22: 270 | K22: 15.84 | L22: 15.85997357 | M22: 15.85000038 | N22: 15.57
A23: ODV19 | B23: 2019-10-01 | C23: 1001 | D23: 15.83 | E23: 15.8 | F23: 10/1/2015 | G23: 15.56 | H23: 15.59 | I23: 22950 | J23: 1090 | K23: 15.76 | L23: 15.84291192 | M23: 15.82999992 | N23: 15.55
A24: ODF20 | B24: 2020-01-02 | C24: 1065 | D24: 15.81 | E24: 15.72 | F24: 9:58:03 AM | G24: 15.53 | H24: 15.54 | I24: 164040 | J24: 1990 | K24: 15.72 | L24: 15.82178852 | M24: 15.81000042 | N24: 15.5
A25: ODJ20 | B25: 2020-04-01 | C25: 1127 | D25: 15.79 | E25: 15.731 | F25: 10/1/2015 | G25: #N/A N/A | H25: 15.74 | I25: 13334 | J25: #N/A N/A | K25: 15.664 | L25: 15.79659877 | M25: 15.78999996 | N25: 15.45
A26: ODN20 | B26: 2020-07-01 | C26: 1188 | D26: 15.76 | E26: 15.74 | F26: 9:40:36 AM | G26: 15.47 | H26: 15.51 | I26: 20815 | J26: 10 | K26: 15.74 | L26: 15.76750556 | M26: 15.76000023 | N26: 15.21
A27: ODV20 | B27: 2020-10-01 | C27: 1253 | D27: 15.72 | E27: 15.692 | F27: 10/1/2015 | G27: #N/A N/A | H27: 15.79 | I27: 12435 | J27: 1780 | K27: 15.619 | L27: 15.73276729 | M27: 15.72000027 | N27: 14.99
A28: ODF21 | B28: 2021-01-01 | C28: 1315 | D28: 15.68 | E28: 15.65 | F28: 9:58:24 AM | G28: 15.44 | H28: 15.45 | I28: 1109482 | J28: 22555 | K28: 15.65 | L28: 15.69757987 | M28: 15.68000031 | N28: 14.87 | R28: x6 | S28: -2.18e-18
A29: ODJ21 | B29: 2021-04-01 | C29: 1377 | D29: 15.64 | E29: 15.658 | F29: 10/1/2015 | G29: #N/A N/A | H29: 15.66 | I29: 690 | J29: #N/A N/A | K29: 15.597 | L29: 15.66233842 | M29: 15.64000034 | N29: 14.79 | R29: x5 | S29: 1.45386e-14
A30: ODN21 | B30: 2021-07-01 | C30: 1439 | D30: 15.6 | E30: 15.666 | F30: 9:42:27 AM | G30: 15.4 | H30: 15.47 | I30: 1575 | J30: 5 | K30: 15.666 | L30: 15.62914289 | M30: 15.60000038 | N30: 14.72 | R30: x4 | S30: -3.85066484e-11
A31: ODV21 | B31: 2021-10-01 | C31: 1504 | D31: 15.56 | E31: 15.673 | F31: 10/1/2015 | G31: #N/A N/A | H31: 15.66 | I31: 460 | J31: 5 | K31: 15.592 | L31: 15.59864706 | M31: 15.56000042 | N31: 14.68 | R31: x3 | S31: 5.17413012e-08
A32: ODF22 | B32: 2022-01-03 | C32: 1567 | D32: 15.52 | E32: 15.68 | F32: 9:42:27 AM | G32: 15.41 | H32: 15.44 | I32: 26678 | J32: 35 | K32: 15.68 | L32: 15.57471554 | M32: 15.52000046 | N32: 14.57 | R32: x2 | S32: -3.742609662e-05
A33: ODF23 | B33: 2023-01-02 | C33: 1818 | D33: 15.38 | E33: 15.66 | F33: 9:55:20 AM | G33: 15.42 | H33: 15.44 | I33: 271739 | J33: 725 | K33: 15.66 | L33: 15.50584641 | M33: 15.38000011 | N33: 14.51 | R33: x1 | S33: 0.01375023558
A34: ODN23 | B34: 2023-07-03 | C34: 1942 | D34: 15.648 | E34: 15.648 | F34: 10/1/2015 | G34: #N/A N/A | H34: #N/A N/A | I34: 840 | J34: #N/A N/A | K34: 15.57 | L34: 15.38673348 | M34: 15.31408767 | N34: =ROUND(((((1+D34/100)^(C34/252))/((1+D33/100)^(C33/252)))^(252/(C34-C33))-1)*100,2) -> 19.65 | O34: F23 | S34: R² = 0,99634422601714900000
A35: ODF24 | B35: 2024-01-02 | C35: 2067 | D35: 15.45 | E35: 15.638 | F35: 9:30:55 AM | G35: 15.37 | H35: 15.49 | I35: 34645 | J35: 65 | K35: 15.638 | L35: 15.01924524 | M35: 15.24125287 | N35: 12.42 | O35: F24
A36: ODN24 | B36: 2024-07-01 | C36: 2191 | D36: 15.629 | E36: 15.629 | F36: 10/1/2015 | G36: #N/A N/A | H36: #N/A N/A | I36: 0 | J36: #N/A N/A | K36: 15.57 | L36: 14.12764583 | M36: 15.15631878 | N36: 18.65 | O36: F25
A37: ODF25 | B37: 2025-01-02 | C37: 2321 | D37: 15.38 | E37: 15.62 | F37: 9:56:35 AM | G37: 15.42 | H37: 15.45 | I37: 286067 | J37: 920 | K37: 15.62 | L37: 12.14583722 | M37: 15.04682284 | N37: 11.26
A38: ODF26 | B38: 2026-01-02 | C38: 2574 | D38: 15.64 | E38: 15.64 | F38: 10/1/2015 | G38: #N/A N/A | H38: #N/A N/A | I38: 9800 | J38: #N/A N/A | K38: 15.59 | L38: 2.123995358 | M38: 14.74665536 | N38: 18.05
A39: ODF29 | B39: 2029-01-02 | C39: 3324 | D39: 15.67 | E39: 15.67 | F39: 10/1/2015 | G39: #N/A N/A | H39: #N/A N/A | I39: 10 | J39: #N/A N/A | K39: 15.62 | L39: -195.3231268 | M39: 12.71164742 | N39: 15.77
A40: ODF30 | B40: 2030-01-02 | C40: 3574 | D40: 15.67 | E40: 15.67 | F40: 10/1/2015 | G40: #N/A N/A | H40: #N/A N/A | I40: 200 | J40: #N/A N/A | K40: 15.62 | L40: -401.0792138 | M40: 11.4802555 | N40: 15.67
R41: x0 | S41: 13.92581237
L45: 0 | M45: =N2 -> 14.26
L46: =C2 -> 19 | M46: =M45 -> 14.26
L47: =L46 -> 19 | M47: =N3 -> 14.53
L48: =C3 -> 40 | M48: =M47 -> 14.53
L49: =L48 -> 40 | M49: =N4 -> 14.99
L50: =C4 -> 62 | M50: =M49 -> 14.99
L51: =L50 -> 62 | M51: =N5 -> 15.19
L52: =C5 -> 82 | M52: =M51 -> 15.19
L53: =L52 -> 82 | M53: =N6 -> 15.5
L54: =C6 -> 101 | M54: =M53 -> 15.5
L55: =L54 -> 101 | M55: =N7 -> 16.29
L56: =C7 -> 123 | M56: =M55 -> 16.29
L57: =L56 -> 123 | M57: =N8 -> 16.36
L58: =C8 -> 143 | M58: =M57 -> 16.36
L59: =L58 -> 143 | M59: =N9 -> 16.33
L60: =C9 -> 164 | M60: =M59 -> 16.33
L61: =L60 -> 164 | M61: =N10 -> 16.29
L62: =C10 -> 186 | M62: =M61 -> 16.29
L63: =L62 -> 186 | M63: =N11 -> 16.24
L64: =C11 -> 251 | M64: =M63 -> 16.24
L65: =L64 -> 251 | M65: =N12 -> 16.18
L66: =C12 -> 313 | M66: =M65 -> 16.18
L67: =L66 -> 313 | M67: =N13 -> 16.11
L68: =C13 -> 376 | M68: =M67 -> 16.11
L69: =L68 -> 376 | M69: =N14 -> 16.08
L70: =C14 -> 437 | M70: =M69 -> 16.08
L71: =L70 -> 437 | M71: =N15 -> 16.05
L72: =C15 -> 501 | M72: =M71 -> 16.05
L73: =L72 -> 501 | M73: =N16 -> 16
L74: =C16 -> 562 | M74: =M73 -> 16
L75: =L74 -> 562 | M75: =N17 -> 15.92
L76: =C17 -> 623 | M76: =M75 -> 15.92
L77: =L76 -> 623 | M77: =N18 -> 15.92
L78: =C18 -> 686 | M78: =M77 -> 15.92
L79: =L78 -> 686 | M79: =N19 -> 15.8
L80: =C19 -> 750 | M80: =M79 -> 15.8
L81: =L80 -> 750 | M81: =N20 -> 15.65
L82: =C20 -> 812 | M82: =M81 -> 15.65
L83: =L82 -> 812 | M83: =N21 -> 15.6
L84: =C21 -> 873 | M84: =M83 -> 15.6
L85: =L84 -> 873 | M85: =N22 -> 15.57
L86: =C22 -> 935 | M86: =M85 -> 15.57
L87: =L86 -> 935 | M87: =N23 -> 15.55
L88: =C23 -> 1001 | M88: =M87 -> 15.55
L89: =L88 -> 1001 | M89: =N24 -> 15.5
L90: =C24 -> 1065 | M90: =M89 -> 15.5
L91: =L90 -> 1065 | M91: =N25 -> 15.45
L92: =C25 -> 1127 | M92: =M91 -> 15.45
L93: =L92 -> 1127 | M93: =N26 -> 15.21
L94: =C26 -> 1188 | M94: =M93 -> 15.21
L95: =L94 -> 1188 | M95: =N27 -> 14.99
L96: =C27 -> 1253 | M96: =M95 -> 14.99
L97: =L96 -> 1253 | M97: =N28 -> 14.87
L98: =C28 -> 1315 | M98: =M97 -> 14.87
L99: =L98 -> 1315 | M99: =N29 -> 14.79
L100: =C29 -> 1377 | M100: =M99 -> 14.79
L101: =L100 -> 1377 | M101: =N30 -> 14.72
L102: =C30 -> 1439 | M102: =M101 -> 14.72
L103: =L102 -> 1439 | M103: =N31 -> 14.68
L104: =C31 -> 1504 | M104: =M103 -> 14.68
L105: =L104 -> 1504 | M105: =N32 -> 14.57
L106: =C32 -> 1567 | M106: =M105 -> 14.57
L107: =L106 -> 1567 | M107: =N33 -> 14.51
L108: =C33 -> 1818 | M108: =M107 -> 14.51

Sheet Planilha1
J5: 2022-03-01 | K5: 10.99
J6: 2022-05-01 | K6: 11.254
J7: 2022-05-01 | K7: 11.55
J8: 2022-06-01 | K8: 11.74
J9: 2022-07-01 | K9: 11.89
J10: 2022-08-01 | K10: 12.06
J11: 2022-10-01 | K11: 12.135
J12: 2022-10-01 | K12: 12.2
J13: 2022-11-01 | K13: 12.26
J14: 2023-01-01 | K14: 12.26
J15: 2023-01-01 | K15: 12.27
J16: 2023-04-01 | K16: 12.255
J17: 2023-07-01 | K17: 12.175
J18: 2023-10-01 | K18: 11.955
J19: 2024-01-01 | K19: 11.72
J20: 2024-03-01 | K20: 11.57
J21: 2024-06-01 | K21: 11.405
J22: 2024-09-01 | K22: 11.29
J23: 2025-01-01 | K23: 11.19
J24: 2025-03-01 | K24: 11.16
J25: 2025-06-01 | K25: 11.125
J26: 2025-09-01 | K26: 11.005
J27: 2026-01-01 | K27: 11.115
J28: 2026-03-01 | K28: 11.09
J29: 2026-06-01 | K29: 11.135
J30: 2026-09-01 | K30: 11.22
J31: 2027-01-01 | K31: 11.195
J32: 2028-01-01 | K32: 11.29
J33: 2029-01-01 | K33: 11.41
J34: 2030-01-01 | K34: 11.43
J35: 2031-01-01 | K35: 11.5
J36: 2032-01-01 | K36: 11.655
J37: 2033-01-01 | K37: 11.54
J38: 2035-01-01 | K38: 11.76
J39: 2036-01-01 | K39: 11.776
J40: 2037-01-01 | K40: 11.854

Sheet COPOM
C1: DATA
C2: 2022-09-18 | F2: ETTJ | N2: Reuniões Copom
E3: tc | F3: tl | G3: DU | H3: Tx Spot | I3: Termo | M3: Termo | N3: # | O3: DU
E4: a | G4: 0 | H4: 13.65 | I4: =H4 -> 13.65 | J4: spot
C5: 2022-10-01 | E5: b | F5: a | G5: =NETWORKDAYS($C$2,C5,Feriados)-1 -> 9 | H5: 13.72 | I5: =H5 -> 13.72 | J5: TX CURTA | L5: 2022-09-21 | M5: a | N5: R1 | O5: =NETWORKDAYS($C$2,L5,Feriados)-1 -> 2 | X5: 0 | Y5: =J22 -> 13.65
C6: 2022-11-02 | E6: c | F6: b | G6: =NETWORKDAYS($C$2,C6,Feriados)-1 -> 30 | H6: 13.74 | I6: =C17 -> 13.75 | J6: T1 | L6: 2022-10-26 | M6: b | N6: R2 | O6: =NETWORKDAYS($C$2,L6,Feriados)-1 -> 26 | X6: 26 | Y6: =J22 -> 13.65
C7: 2022-12-01 | E7: d | F7: c | G7: =NETWORKDAYS($C$2,C7,Feriados)-1 -> 50 | H7: 13.78 | I7: =H17 -> 13.84 | J7: T2 | L7: 2022-12-07 | M7: d | N7: R3 | O7: =NETWORKDAYS($C$2,L7,Feriados)-1 -> 54 | X7: 26 | Y7: =J23 -> 13.74
C8: 2023-01-01 | E8: e | F8: d | G8: =NETWORKDAYS($C$2,C8,Feriados)-1 -> 71 | H8: 13.8 | I8: =M17 -> 13.85 | J8: T3 | X8: 60 | Y8: =J23 -> 13.74
C9: 2023-02-01 | E9: f | F9: e | G9: =NETWORKDAYS($C$2,C9,Feriados)-1 -> 94 | H9: 13.81 | I9: =R17 -> 13.84 | J9: T3 | X9: 60 | Y9: =J24 -> 13.79
X10: 89 | Y10: =J24 -> 13.79
B11: Termo | C11: b | G11: Termo | H11: c | L11: Termo | M11: d | Q11: Termo | R11: e | X11: 89 | Y11: =J25 -> 13.86
D12: DU | I12: DU | N12: DU | S12: DU | X12: 120 | Y12: =Y11 -> 13.86
B13: Tx. Curta | C13: =VLOOKUP(C11,$E$5:$H$9,4) -> 13.72 | D13: =VLOOKUP(C11,$E$5:$H$9,3) -> 9 | G13: Tx. Curta | H13: =VLOOKUP(H11,$E$5:$H$9,4) -> 13.74 | I13: =VLOOKUP(H11,$E$5:$H$9,3) -> 30 | L13: Tx. Curta | M13: =VLOOKUP(M11,$E$5:$H$9,4) -> 13.78 | N13: =VLOOKUP(M11,$E$5:$H$9,3) -> 50 | Q13: Tx. Curta | R13: =VLOOKUP(R11,$E$5:$H$9,4) -> 13.8 | S13: =VLOOKUP(R11,$E$5:$H$9,3) -> 71
B15: Tx. Longa | C15: =VLOOKUP(C11,$F$5:$H$9,3) -> 13.74 | D15: =VLOOKUP(C11,$F$5:$H$9,2) -> 30 | G15: Tx. Longa | H15: =VLOOKUP(H11,$F$5:$H$9,3) -> 13.78 | I15: =VLOOKUP(H11,$F$5:$H$9,2) -> 50 | L15: Tx. Longa | M15: =VLOOKUP(M11,$F$5:$H$9,3) -> 13.8 | N15: =VLOOKUP(M11,$F$5:$H$9,2) -> 71 | Q15: Tx. Longa | R15: =VLOOKUP(R11,$F$5:$H$9,3) -> 13.81 | S15: =VLOOKUP(R11,$F$5:$H$9,2) -> 94
B17: Termo | C17: =ROUND(((((1+C15/100)^(D15/252))/((1+C13/100)^(D13/252)))^(252/(E17))-1)*100,2) -> 13.75 | E17: =D15-D13 -> 21 | G17: Termo | H17: =ROUND(((((1+H15/100)^(I15/252))/((1+H13/100)^(I13/252)))^(252/(J17))-1)*100,2) -> 13.84 | J17: =I15-I13 -> 20 | L17: Termo | M17: =ROUND(((((1+M15/100)^(N15/252))/((1+M13/100)^(N13/252)))^(252/(O17))-1)*100,2) -> 13.85 | O17: =N15-N13 -> 21 | Q17: Termo | R17: =ROUND(((((1+R15/100)^(S15/252))/((1+R13/100)^(S13/252)))^(252/(T17))-1)*100,2) -> 13.84 | T17: =S15-S13 -> 23
F22: Cálculo do CDI projetado | I22: CDI 0 | J22: =I4 -> 13.65
I23: CDI 1 | J23: =C34 -> 13.74 | K23: =J23-J22 -> 0.09
I24: CDI 2 | J24: =H34 -> 13.79 | K24: =J24-J23 -> 0.05
I25: CDI 3 | J25: =M34 -> 13.86 | K25: =J25-J24 -> 0.07
B28: Termo | C28: =M5 -> a | G28: Termo | H28: =M6 -> b | L28: Termo | M28: =M7 -> d
D29: DU | I29: DU | N29: DU
B30: Tx. Curta | C30: =VLOOKUP(C28,$E$4:$H$9,4) -> 13.65 | D30: =VLOOKUP(C28,$M$5:$O$7,3)-VLOOKUP(C28,$E$4:$H$9,3) -> 2 | G30: Tx. Curta | H30: =C34 -> 13.74 | I30: =VLOOKUP(H28,$M$5:$O$7,3)-VLOOKUP(H28,$E$5:$H$9,3) -> 17 | L30: Tx. Curta | M30: =H34 -> 13.79 | N30: =VLOOKUP(M28,$M$5:$O$7,3)-VLOOKUP(M28,$E$5:$H$9,3) -> 4
B32: Tx. Longa | C32: =VLOOKUP(C28,$F$4:$I$8,4) -> 13.72 | D32: =VLOOKUP(C28,$F$4:$H$8,2)-VLOOKUP(C28,$E$4:$H$8,3) -> 9 | G32: Tx. Longa | H32: =VLOOKUP(H28,$F$4:$I$8,4) -> 13.75 | I32: =VLOOKUP(H28,$F$5:$H$9,2)-VLOOKUP(H28,$E$5:$H$9,3) -> 21 | L32: Tx. Longa | M32: =VLOOKUP(M28,$F$5:$I$9,4) -> 13.85 | N32: =VLOOKUP(M28,$F$5:$H$9,2)-VLOOKUP(M28,$E$5:$H$9,3) -> 21
B34: Termo | C34: =ROUND(((((1+C32/100)^(D32/252))/((1+C30/100)^(D30/252)))^(252/(E34))-1)*100,2) -> 13.74 | E34: =D32-D30 -> 7 | G34: Termo | H34: =ROUND(((((1+H32/100)^(I32/252))/((1+H30/100)^(I30/252)))^(252/(J34))-1)*100,2) -> 13.79 | J34: =I32-I30 -> 4 | L34: Termo | M34: =ROUND(((((1+M32/100)^(N32/252))/((1+M30/100)^(N30/252)))^(252/(O34))-1)*100,2) -> 13.86 | O34: =N32-N30 -> 17

Sheet COPOM 1
C1: DATA
C2: 2011-03-12 | F2: ETTJ | N2: Reuniões Copom
E3: tc | F3: tl | G3: DU | H3: Tx Spot | I3: Termo | M3: Termo | N3: # | O3: DU
E4: a | G4: 0 | H4: 11.66 | I4: 11.66 | J4: spot
C5: 2011-04-01 | E5: b | F5: a | G5: =NETWORKDAYS($C$2,C5,Feriados)-1 -> 14 | H5: 11.66 | I5: =H5 -> 11.66 | J5: TX CURTA | L5: 2011-04-20 | M5: b | N5: R1 | O5: =NETWORKDAYS($C$2,L5,Feriados)-1 -> 27 | X5: 0 | Y5: =J22 -> 11.66
C6: 2011-05-02 | E6: c | F6: b | G6: =NETWORKDAYS($C$2,C6,Feriados)-1 -> 33 | H6: 11.75 | I6: =C17 -> 11.82 | J6: T1 | L6: 2011-06-08 | M6: c | N6: R2 | O6: =NETWORKDAYS($C$2,L6,Feriados)-1 -> 60 | X6: 26 | Y6: =J22 -> 11.66
C7: 2011-07-01 | E7: d | F7: c | G7: =NETWORKDAYS($C$2,C7,Feriados)-1 -> 76 | H7: 12.1 | I7: =H17 -> 12.37 | J7: T2 | L7: 2011-07-20 | M7: d | N7: R3 | O7: =NETWORKDAYS($C$2,L7,Feriados)-1 -> 89 | X7: 26 | Y7: =J23 -> 12.17
C8: 2011-08-01 | E8: e | F8: d | G8: =NETWORKDAYS($C$2,C8,Feriados)-1 -> 97 | H8: 12.21 | I8: =M17 -> 12.61 | J8: T3 | X8: 60 | Y8: =J23 -> 12.17
X9: 60 | Y9: =J24 -> 12.71
X10: 89 | Y10: =J24 -> 12.71
B11: Termo | C11: b | G11: Termo | H11: c | L11: Termo | M11: d | X11: 89 | Y11: =J25 -> 12.45
D12: DU | I12: DU | N12: DU | X12: 120 | Y12: =Y11 -> 12.45
B13: Tx. Curta | C13: =VLOOKUP(C11,$E$5:$H$9,4) -> 11.66 | D13: =VLOOKUP(C11,$E$5:$H$9,3) -> 14 | G13: Tx. Curta | H13: =VLOOKUP(H11,$E$5:$H$9,4) -> 11.75 | I13: =VLOOKUP(H11,$E$5:$H$9,3) -> 33 | L13: Tx. Curta | M13: =VLOOKUP(M11,$E$5:$H$9,4) -> 12.1 | N13: =VLOOKUP(M11,$E$5:$H$9,3) -> 76
B15: Tx. Longa | C15: =VLOOKUP(C11,$F$5:$H$9,3) -> 11.75 | D15: =VLOOKUP(C11,$F$5:$H$9,2) -> 33 | G15: Tx. Longa | H15: =VLOOKUP(H11,$F$5:$H$9,3) -> 12.1 | I15: =VLOOKUP(H11,$F$5:$H$9,2) -> 76 | L15: Tx. Longa | M15: =VLOOKUP(M11,$F$5:$H$9,3) -> 12.21 | N15: =VLOOKUP(M11,$F$5:$H$9,2) -> 97
B17: Termo | C17: =ROUND(((((1+C15/100)^(D15/252))/((1+C13/100)^(D13/252)))^(252/(E17))-1)*100,2) -> 11.82 | E17: =D15-D13 -> 19 | G17: Termo | H17: =ROUND(((((1+H15/100)^(I15/252))/((1+H13/100)^(I13/252)))^(252/(J17))-1)*100,2) -> 12.37 | J17: =I15-I13 -> 43 | L17: Termo | M17: =ROUND(((((1+M15/100)^(N15/252))/((1+M13/100)^(N13/252)))^(252/(O17))-1)*100,2) -> 12.61 | O17: =N15-N13 -> 21
F22: Cálculo do CDI projetado | I22: CDI O | J22: =H5 -> 11.66
I23: CDI 1 | J23: =C34 -> 12.17 | K23: =J23-J22 -> 0.51
I24: CDI 2 | J24: =H34 -> 12.71 | K24: =J24-J23 -> 0.54
I25: CDI 2 | J25: =M34 -> 12.45 | K25: =J25-J24 -> -0.26
B28: Termo | C28: =M5 -> b | G28: Termo | H28: =M6 -> c | L28: Termo | M28: =M7 -> d
D29: DU | I29: DU | N29: DU
B30: Tx. Curta | C30: =VLOOKUP(C28,$E$5:$H$9,4) -> 11.66 | D30: =VLOOKUP(C28,$M$5:$O$7,3)-VLOOKUP(C28,$E$5:$H$9,3) -> 13 | G30: Tx. Curta | H30: =C34 -> 12.17 | I30: =VLOOKUP(H28,$M$5:$O$7,3)-VLOOKUP(H28,$E$5:$H$9,3) -> 27 | L30: Tx. Curta | M30: =H34 -> 12.71 | N30: =VLOOKUP(M28,$M$5:$O$7,3)-VLOOKUP(M28,$E$5:$H$9,3) -> 13
B32: Tx. Longa | C32: =VLOOKUP(C28,$F$5:$I$9,4) -> 11.82 | D32: =VLOOKUP(C28,$F$5:$H$9,2)-VLOOKUP(C28,$E$5:$H$9,3) -> 19 | G32: Tx. Longa | H32: =VLOOKUP(H28,$F$5:$I$9,4) -> 12.37 | I32: =VLOOKUP(H28,$F$5:$H$9,2)-VLOOKUP(H28,$E$5:$H$9,3) -> 43 | L32: Tx. Longa | M32: =VLOOKUP(M28,$F$5:$I$9,4) -> 12.61 | N32: =VLOOKUP(M28,$F$5:$H$9,2)-VLOOKUP(M28,$E$5:$H$9,3) -> 21
B34: Termo | C34: =ROUND(((((1+C32/100)^(D32/252))/((1+C30/100)^(D30/252)))^(252/(E34))-1)*100,2) -> 12.17 | E34: =D32-D30 -> 6 | G34: Termo | H34: =ROUND(((((1+H32/100)^(I32/252))/((1+H30/100)^(I30/252)))^(252/(J34))-1)*100,2) -> 12.71 | J34: =I32-I30 -> 16 | L34: Termo | M34: =ROUND(((((1+M32/100)^(N32/252))/((1+M30/100)^(N30/252)))^(252/(O34))-1)*100,2) -> 12.45 | O34: =N32-N30 -> 8

Sheet COPOM 2
C1: DATA
C2: 2015-10-02 | F2: ETTJ | N2: Reuniões Copom
E3: tc | F3: tl | G3: DU | H3: Tx Spot | I3: Termo | M3: Termo | N3: # | O3: DU
C4: 2015-10-21 | E4: a | G4: =NETWORKDAYS($C$2,C4,Feriados)-1 -> 12 | H4: 14.13 | I4: =H4 -> 14.13 | J4: spot
C5: 2015-11-02 | E5: b | F5: a | G5: =NETWORKDAYS($C$2,C5,Feriados)-1 -> 19 | H5: =Cubic_Spline('021015'!$R$2:$R$13,'021015'!$S$2:$S$13,G5) -> 14.22856998 | I5: =C17 -> 14.4 | J5: TX CURTA | L5: 2015-10-21 | M5: a | N5: R1 | O5: =NETWORKDAYS($C$2,L5,Feriados)-1 -> 12 | X5: 0 | Y5: =J22 -> 14.13
C6: 2015-12-01 | E6: c | F6: b | G6: =NETWORKDAYS($C$2,C6,Feriados)-1 -> 40 | H6: =Cubic_Spline('021015'!$R$2:$R$13,'021015'!$S$2:$S$13,G6) -> 14.32998657 | I6: =H17 -> 14.42 | J6: T1 | L6: 2015-11-25 | M6: b | N6: R2 | O6: =NETWORKDAYS($C$2,L6,Feriados)-1 -> 36 | X6: 26 | Y6: =J22 -> 14.13
C7: 2016-01-04 | E7: d | F7: c | G7: =NETWORKDAYS($C$2,C7,Feriados)-1 -> 62 | H7: =Cubic_Spline('021015'!$R$2:$R$13,'021015'!$S$2:$S$13,G7) -> 14.54001904 | I7: =M17 -> 14.92 | J7: T2 | L7: 2016-01-20 | M7: d | N7: R3 | O7: =NETWORKDAYS($C$2,L7,Feriados)-1 -> 74 | X7: 26 | Y7: =J23 -> 14.4
C8: 2016-02-01 | E8: e | F8: d | G8: =NETWORKDAYS($C$2,C8,Feriados)-1 -> 82 | H8: =Cubic_Spline('021015'!$R$2:$R$13,'021015'!$S$2:$S$13,G8) -> 14.67500019 | I8: =R17 -> 15.09 | J8: T3 | X8: 60 | Y8: =J23 -> 14.4
X9: 60 | Y9: =J24 -> 14.51
X10: 89 | Y10: =J24 -> 14.51
B11: Termo | C11: a | G11: Termo | H11: b | L11: Termo | M11: c | Q11: Termo | R11: d | X11: 89 | Y11: =J25 -> 15.97
D12: DU | I12: DU | N12: DU | S12: DU | X12: 120 | Y12: =Y11 -> 15.97
B13: Tx. Curta | C13: =VLOOKUP(C11,$E$4:$H$9,4) -> 14.13 | D13: =VLOOKUP(C11,$E$4:$H$9,3) -> 12 | G13: Tx. Curta | H13: =VLOOKUP(H11,$E$5:$H$9,4) -> 14.22856998 | I13: =VLOOKUP(H11,$E$5:$H$9,3) -> 19 | L13: Tx. Curta | M13: =VLOOKUP(M11,$E$5:$H$9,4) -> 14.32998657 | N13: =VLOOKUP(M11,$E$5:$H$9,3) -> 40 | Q13: Tx. Curta | R13: =VLOOKUP(R11,$E$5:$H$9,4) -> 14.54001904 | S13: =VLOOKUP(R11,$E$5:$H$9,3) -> 62
B15: Tx. Longa | C15: =VLOOKUP(C11,$F$4:$H$9,3) -> 14.22856998 | D15: =VLOOKUP(C11,$F$4:$H$9,2) -> 19 | G15: Tx. Longa | H15: =VLOOKUP(H11,$F$5:$H$9,3) -> 14.32998657 | I15: =VLOOKUP(H11,$F$5:$H$9,2) -> 40 | L15: Tx. Longa | M15: =VLOOKUP(M11,$F$5:$H$9,3) -> 14.54001904 | N15: =VLOOKUP(M11,$F$5:$H$9,2) -> 62 | Q15: Tx. Longa | R15: =VLOOKUP(R11,$F$5:$H$9,3) -> 14.67500019 | S15: =VLOOKUP(R11,$F$5:$H$9,2) -> 82
B17: Termo | C17: =ROUND(((((1+C15/100)^(D15/252))/((1+C13/100)^(D13/252)))^(252/(E17))-1)*100,2) -> 14.4 | E17: =D15-D13 -> 7 | G17: Termo | H17: =ROUND(((((1+H15/100)^(I15/252))/((1+H13/100)^(I13/252)))^(252/(J17))-1)*100,2) -> 14.42 | J17: =I15-I13 -> 21 | L17: Termo | M17: =ROUND(((((1+M15/100)^(N15/252))/((1+M13/100)^(N13/252)))^(252/(O17))-1)*100,2) -> 14.92 | O17: =N15-N13 -> 22 | Q17: Termo | R17: =ROUND(((((1+R15/100)^(S15/252))/((1+R13/100)^(S13/252)))^(252/(T17))-1)*100,2) -> 15.09 | T17: =S15-S13 -> 20
F22: Cálculo do CDI projetado | I22: CDI 0 | J22: =14.13 -> 14.13
I23: CDI 1 | J23: =C34 -> 14.4 | K23: =J23-J22 -> 0.27
I24: CDI 2 | J24: =H34 -> 14.51 | K24: =J24-J23 -> 0.11
I25: CDI 3 | J25: =M34 -> 15.97 | K25: =J25-J24 -> 1.46
B28: Termo | C28: =M5 -> a | G28: Termo | H28: =M6 -> b | L28: Termo | M28: =M7 -> d
D29: DU | I29: DU | N29: DU
B30: Tx. Curta | C30: =VLOOKUP(C28,$E$4:$H$8,4) -> 14.13 | D30: =VLOOKUP(C28,$M$5:$O$7,3)-VLOOKUP(C28,$E$4:$H$8,3) -> 0 | G30: Tx. Curta | H30: =C34 -> 14.4 | I30: =VLOOKUP(H28,$M$5:$O$7,3)-VLOOKUP(H28,$E$4:$H$8,3) -> 17 | L30: Tx. Curta | M30: =H34 -> 14.51 | N30: =VLOOKUP(M28,$M$5:$O$7,3)-VLOOKUP(M28,$E$5:$H$9,3) -> 12
B32: Tx. Longa | C32: =VLOOKUP(C28,$F$4:$I$8,4) -> 14.4 | D32: =VLOOKUP(C28,$F$4:$H$8,2)-VLOOKUP(C28,$E$4:$H$8,3) -> 7 | G32: Tx. Longa | H32: =VLOOKUP(H28,$F$4:$I$8,4) -> 14.42 | I32: =VLOOKUP(H28,$F$4:$H$8,2)-VLOOKUP(H28,$E$4:$H$8,3) -> 21 | L32: Tx. Longa | M32: =VLOOKUP(M28,$F$5:$I$9,4) -> 15.09 | N32: =VLOOKUP(M28,$F$5:$H$9,2)-VLOOKUP(M28,$E$5:$H$9,3) -> 20
B34: Termo | C34: =ROUND(((((1+C32/100)^(D32/252))/((1+C30/100)^(D30/252)))^(252/(E34))-1)*100,2) -> 14.4 | E34: =D32-D30 -> 7 | G34: Termo | H34: =ROUND(((((1+H32/100)^(I32/252))/((1+H30/100)^(I30/252)))^(252/(J34))-1)*100,2) -> 14.51 | J34: =I32-I30 -> 4 | L34: Termo | M34: =ROUND(((((1+M32/100)^(N32/252))/((1+M30/100)^(N30/252)))^(252/(O34))-1)*100,2) -> 15.97 | O34: =N32-N30 -> 8

Sheet 021015
A1: 2015-10-02 | B1: VENCTO | C1: CONTR. ABERT.(1) | D1: CONTR. FECH.(2) | E1: NÚM. NEGOC. | F1: CONTR. NEGOC. | G1: VOL. | H1: AJUSTE ANTER. (3) | I1: AJUSTE CORRIG. (4) | J1: PREÇO ABERTU. | K1: PREÇO MÍN. | L1: PREÇO MÁX. | M1: PREÇO MÉD. | N1: ÚLT. PREÇO | O1: AJUSTE | P1: VAR. PTOS.
A2: ODX5 | B2: X15 | C2: 1060356 | D2: 1124936 | E2: 76 | F2: 95570 | G2: 9456585203 | H2: 98944.76 | I2: 99001.91 | J2: 14.255 | K2: 14.13 | L2: 14,270 | M2: 14.235 | N2: 14.2 | O2: 99002 | P2: 5,24+ | Q2: 2015-11-02 | R2: =NETWORKDAYS($A$1,Q2,Feriados)-1 -> 19 | S2: =((100000/O2)^(252/R2)-1)*100 -> 14.22856958 | T2: ='091015'!S2 -> 14.09736273 | U2: ='141015'!S2 -> 14.13
A3: ODZ5 | B3: Z15 | C3: 665740 | D3: 689025 | E3: 218 | F3: 31100 | G3: 3044408984 | H3: 97882.13 | I3: 97948.1 | J3: 14.41 | K3: 14.27 | L3: 14,410 | M3: 14.372 | N3: 14.27 | O3: 97896.74 | P3: 14,61+ | Q3: 2015-12-01 | R3: 40 | S3: =((100000/O3)^(252/R3)-1)*100 -> 14.3299864 | T3: ='091015'!S3 -> 14.19999065 | U3: ='141015'!S3 -> 14.18996991
A4: ODF6 | B4: F16 | C4: 3487879 | D4: 3493188 | E4: 2722 | F4: 302326 | G4: 29238108221 | H4: 96684.27 | I4: 96765.92 | J4: 14.62 | K4: 14.4 | L4: 14,630 | M4: 14.562 | N4: 14.431 | O4: 96715.18 | P4: 30,91+ | Q4: 2016-01-04 | R4: 62 | S4: 14.54001922 | T4: ='091015'!S4 -> 14.32000699 | U4: ='141015'!S4 -> 14.3500143
A5: ODG6 | B5: G16 | C5: 114485 | D5: 113920 | E5: 24 | F5: 1520 | G5: 145376486 | H5: 95592.26 | I5: 95692.26 | J5: 14.7 | K5: 14.6 | L5: 14,700 | M5: 14.674 | N5: 14.6 | O5: 95642.09 | P5: 49,83+ | Q5: 2016-02-01 | R5: 82 | S5: 14.67500004 | T5: ='091015'!S5 -> 14.47999301 | U5: ='141015'!S5 -> 14.53998576
A6: ODH6 | B6: H16 | C6: 70015 | D6: 70215 | E6: 12 | F6: 685 | G6: 64814632 | H6: 94549.57 | I6: 94668.06 | J6: 14.81 | K6: 14.76 | L6: 14,810 | M6: 14.796 | N6: 14.76 | O6: 94618.42 | P6: 68,85+ | Q6: 2016-03-01 | R6: 101 | S6: 14.79998695 | T6: ='091015'!S6 -> 14.63999495 | U6: ='141015'!S6 -> 14.65998413
A7: ODJ6 | B7: J16 | C7: 1096753 | D7: 1105600 | E7: 304 | F7: 41594 | G7: 3884280016 | H7: 93315.15 | I7: 93442.86 | J7: 15.155 | K7: 14.945 | L7: 15,155 | M7: 15.051 | N7: 14.985 | O7: 93393.87 | P7: 78,72+ | Q7: 2016-04-01 | R7: 123 | S7: 15.03000553 | T7: ='091015'!S7 -> 14.82999345 | U7: ='141015'!S7 -> 14.83999912
A8: ODK6 | B8: K16 | C8: 52245 | D8: 52265 | E8: 4 | F8: 320 | G8: 29556851 | H8: 92212.36 | I8: 92368.28 | J8: 15.21 | K8: 15.005 | L8: 15,210 | M8: 15.022 | N8: 15.005 | O8: 92319.85 | P8: 107,49+ | Q8: 2016-05-02 | R8: 143 | S8: 15.12199382 | T8: ='091015'!S8 -> 15.01500627 | U8: ='141015'!S8 -> 14.99998856
A9: ODM6 | B9: M16 | C9: 52145 | D9: 51110 | E9: 13 | F9: 2930 | G9: 267094663 | H9: 91041.45 | I9: 91253 | J9: 15.37 | K9: 15.195 | L9: 15,370 | M9: 15.285 | N9: 15.195 | O9: 91205.15 | P9: 163,70+ | Q9: 2016-06-01 | R9: 164 | S9: 15.19500909 | T9: ='091015'!S9 -> 15.1499946 | U9: ='141015'!S9 -> 15.16499003
A10: ODN6 | B10: N16 | C10: 901521 | D10: 902499 | E10: 1190 | F10: 32805 | G10: 2952012252 | H10: 89859.67 | I10: 90095.5 | J10: 15.525 | K10: 15.21 | L10: 15,525 | M10: 15.367 | N10: 15.245 | O10: 90048.26 | P10: 188,59+ | Q10: 2016-07-01 | R10: 186 | S10: 15.25999368 | T10: ='091015'!S10 -> 15.2100083 | U10: ='141015'!S10 -> 15.25999823
A11: ODV6 | B11: V16 | C11: 375298 | D11: 373528 | E11: 104 | F11: 16050 | G11: 1390365862 | H11: 86475.76 | I11: 86757.35 | J11: 15.59 | K11: 15.37 | L11: 15,605 | M11: 15.503 | N11: 15.39 | O11: 86711.86 | P11: 236,10+ | Q11: 2016-10-03 | R11: 251 | S11: 15.39000631 | T11: ='091015'!S11 -> 15.44999896 | U11: ='141015'!S11 -> 15.52499961
A12: ODF7 | B12: F17 | C12: 1892891 | D12: 1890349 | E12: 11888 | F12: 258010 | G12: 21554045725 | H12: 83365.26 | I12: 83700.98 | J12: 15.74 | K12: 15.4 | L12: 15,750 | M12: 15.581 | N12: 15.42 | O12: 83657.09 | P12: 291,83+ | Q12: 2017-01-02 | R12: 313 | S12: 15.45000316 | T12: ='091015'!S12 -> 15.55999502 | U12: ='141015'!S12 -> 15.590004
A13: ODJ17 | B13: J17 | C13: 81079 | D13: 81324 | E13: 211 | F13: 3785 | G13: 305040622 | H13: 80264.79 | I13: 80685.48 | J13: 15.74 | K13: 15.51 | L13: 15,790 | M13: 15.559 | N13: 15.51 | O13: 80643.17 | P13: 378,38+ | Q13: 2017-04-03 | R13: 376 | S13: 15.51000248 | T13: ='091015'!S13 -> 15.68999837 | U13: ='141015'!S13 -> 15.75999632
A14: ODN17 | B14: N17 | C14: 524309 | D14: 526973 | E14: 1191 | F14: 26300 | G14: 2044675385 | H14: 77372.07 | I14: 77859.48 | J14: 15.9 | K14: 15.53 | L14: 15,900 | M14: 15.624 | N14: 15.54 | O14: 77818.66 | P14: 446,59+ | Q14: 2017-07-03 | R14: 437 | S14: 15.56000211 | T14: ='091015'!S14 -> 15.78999964 | U14: ='141015'!S14 -> 15.86999628
A15: ODV17 | B15: V17 | C15: 160420 | D15: 160645 | E15: 199 | F15: 3740 | G15: 280234955 | H15: 74494.08 | I15: 75038.76 | J15: 15.81 | K15: 15.55 | L15: 15,810 | M15: 15.625 | N15: 15.55 | O15: 74999.42 | P15: 505,34+ | Q15: 2017-10-02 | R15: 501 | S15: 15.57000331 | T15: ='091015'!S15 -> 15.86000362 | U15: ='141015'!S15 -> 15.9599994
A16: ODF18 | B16: F18 | C16: 959185 | D16: 945786 | E16: 12149 | F16: 149895 | G16: 10829997053 | H16: 71871.23 | I16: 72497.77 | J16: 15.91 | K16: 15.51 | L16: 15,910 | M16: 15.69 | N16: 15.51 | O16: 72459.76 | P16: 588,53+ | Q16: 2018-01-02 | R16: 562 | S16: 15.53999777 | T16: ='091015'!S16 -> 15.93999785 | U16: ='141015'!S16 -> 16.00999677
A17: ODJ18 | B17: J18 | C17: 79145 | D17: 79060 | E17: 30 | F17: 245 | G17: 17085471 | H17: 69333.32 | I17: 70023.15 | J17: 15.8 | K17: 15.54 | L17: 15,800 | M17: 15.696 | N17: 15.54 | O17: 69986.44 | P17: 653,12+ | Q17: 2018-04-02 | R17: 623 | S17: 15.52899772 | T17: ='091015'!S17 -> 15.95000214 | U17: ='141015'!S17 -> 16.05299669
A18: ODN18 | B18: N18 | C18: 417659 | D18: 416960 | E18: 1350 | F18: 16730 | G18: 1124361594 | H18: 66805.05 | I18: 67555.54 | J18: 15.94 | K18: 15.5 | L18: 15,940 | M18: 15.718 | N18: 15.5 | O18: 67520.12 | P18: 715,07+ | Q18: 2018-07-02 | R18: 686 | S18: 15.52000255 | T18: ='091015'!S18 -> 15.98000132 | U18: ='141015'!S18 -> 16.09000028
A19: ODV18 | B19: V18 | C19: 20564 | D19: 20604 | E19: 17 | F19: 130 | G19: 8437924 | H19: 64420.73 | I19: 65217.42 | J19: 15.71 | K19: 15.48 | L19: 15,740 | M19: 15.63 | N19: 15.48 | O19: 65183.22 | P19: 762,49+ | Q19: 2018-10-01 | R19: 750 | S19: 15.46500207 | T19: ='091015'!S19 -> 15.97000066 | U19: ='141015'!S19 -> 16.09000018
A20: ODF19 | B20: F19 | C20: 849806 | D20: 854503 | E20: 9760 | F20: 108155 | G20: 6781237884 | H20: 62173.21 | I20: 63029.57 | J20: 15.82 | K20: 15.41 | L20: 15,830 | M20: 15.59 | N20: 15.41 | O20: 62996.52 | P20: 823,31+ | Q20: 2019-01-02 | R20: 812 | S20: 15.41999943 | T20: ='091015'!S20 -> 15.94999827 | U20: ='141015'!S20 -> 16.10000064
A21: ODJ19 | B21: J19 | C21: 29733 | D21: 29763 | E21: 1 | F21: 30 | G21: 1825963 | H21: 60041.43 | I21: 60917.51 | J21: 15.41 | K21: 15.41 | L21: 15,410 | M21: 15.41 | N21: 15.41 | O21: 60885.57 | P21: 844,14+ | Q21: 2019-04-01 | R21: 873 | S21: 15.39899743 | T21: ='091015'!S21 -> 15.93899797 | U21: ='141015'!S21 -> 16.09499783
A22: ODN19 | B22: N19 | C22: 220473 | D22: 221028 | E22: 297 | F22: 8050 | G22: 471471413 | H22: 57948.05 | I22: 58844.21 | J22: 15.73 | K22: 15.38 | L22: 15,740 | M22: 15.51 | N22: 15.38 | O22: 58813.36 | P22: 865,31+ | Q22: 2019-07-01 | R22: 935 | S22: 15.38000009 | T22: ='091015'!S22 -> 15.93000055 | U22: ='141015'!S22 -> 16.08999728
A23: ODV19 | B23: V19 | C23: 22950 | D23: 22970 | E23: 1 | F23: 20 | G23: 1132230 | H23: 55835.5 | I23: 56775.93 | J23: 15.4 | K23: 15.4 | L23: 15,400 | M23: 15.4 | N23: 15.4 | O23: 56746.16 | P23: 910,66+ | Q23: 2019-10-01 | R23: 1001 | S23: 15.33100099 | T23: ='091015'!S23 -> 15.82199947 | U23: ='141015'!S23 -> 16.04699966
A24: ODF20 | B24: F20 | C24: 164040 | D24: 167892 | E24: 2612 | F24: 22575 | G24: 1230733677 | H24: 53951.07 | I24: 54838.37 | J24: 15.69 | K24: 15.26 | L24: 15,690 | M24: 15.436 | N24: 15.26 | O24: 54809.62 | P24: 858,55+ | Q24: 2020-01-02 | R24: 1065 | S24: 15.28999823 | T24: ='091015'!S24 -> 15.73000242 | U24: ='141015'!S24 -> 16.00999978
A25: ODJ20 | B25: J20 | C25: 13334 | D25: 13339 | E25: 2 | F25: 30 | G25: 1582194 | H25: 52025.33 | I25: 53005.37 | J25: 15.38 | K25: 15.38 | L25: 15,380 | M25: 15.38 | N25: 15.38 | O25: 52977.58 | P25: 952,25+ | Q25: 2020-04-01 | R25: 1127 | S25: 15.26400041 | T25: ='091015'!S25 -> 15.70700213 | U25: ='141015'!S25 -> 15.98999844
A26: ODN20 | B26: N20 | C26: 20815 | D26: 21055 | E26: 84 | F26: 500 | G26: 25421222 | H26: 50199.18 | I26: 51261.9 | J26: 15.55 | K26: 15.23 | L26: 15,550 | M26: 15.429 | N26: 15.24 | O26: 51235.02 | P26: 1.035,84+ | Q26: 2020-07-01 | R26: 1188 | S26: 15.24100023 | T26: ='091015'!S26 -> 15.68699762 | U26: ='141015'!S26 -> 15.97200116
A27: ODV20 | B27: V20 | C27: 12435 | D27: 12435 | E27: 0 | F27: 0 | G27: 0 | H27: 48441.59 | I27: 49467.08 | J27: 0 | K27: 0 | L27: 0,000 | M27: 0 | N27: 0 | O27: 49441.14 | P27: 999,55+ | Q27: 2020-10-01 | R27: 1253 | S27: 15.219001 | T27: ='091015'!S27 -> 15.66700184 | U27: ='141015'!S27 -> 15.95500096
A28: ODF21 | B28: F21 | C28: 1109482 | D28: 1113860 | E28: 11164 | F28: 149715 | G28: 7099314779 | H28: 46796.86 | I28: 47786.95 | J28: 15.45 | K28: 15.19 | L28: 15,630 | M28: 15.359 | N28: 15.19 | O28: 47761.89 | P28: 965,03+ | Q28: 2021-01-01 | R28: 1315 | S28: 15.21239637 | T28: ='091015'!S28 -> 15.66283475 | U28: ='141015'!S28 -> 15.95311307
A29: ODJ21 | B29: J21 | C29: 690 | D29: 690 | E29: 0 | F29: 0 | G29: 0 | H29: 45161.37 | I29: 46184.44 | J29: 0 | K29: 0 | L29: 0,000 | M29: 0 | N29: 0 | O29: 46160.22 | P29: 998,85+ | Q29: 2021-04-01 | R29: 1377 | S29: 15.19700131 | T29: ='091015'!S29 -> 15.65200135 | U29: ='141015'!S29 -> 15.93799864
A30: ODN21 | B30: N21 | C30: 1575 | D30: 1630 | E30: 7 | F30: 65 | G30: 2875254 | H30: 43556.43 | I30: 44611.19 | J30: 15.37 | K30: 15.3 | L30: 15,440 | M30: 15.355 | N30: 15.3 | O30: 44587.8 | P30: 1.031,37+ | Q30: 2021-07-01 | R30: 1439 | S30: 15.1939981 | T30: ='091015'!S30 -> 15.65300062 | U30: ='141015'!S30 -> 15.93700142
A31: ODV21 | B31: V21 | C31: 460 | D31: 460 | E31: 0 | F31: 0 | G31: 0 | H31: 41936.51 | I31: 43019.59 | J31: 0 | K31: 0 | L31: 0,000 | M31: 0 | N31: 0 | O31: 42997.03 | P31: 1.060,52+ | Q31: 2021-10-01 | R31: 1504 | S31: 15.19100205 | T31: ='091015'!S31 -> 15.65500079 | U31: ='141015'!S31 -> 15.93500162
A32: ODF22 | B32: F22 | C32: 26678 | D32: 26663 | E32: 99 | F32: 600 | G32: 24745829 | H32: 40422.27 | I32: 41531.92 | J32: 15.56 | K32: 15.18 | L32: 15,560 | M32: 15.308 | N32: 15.18 | O32: 41510.14 | P32: 1.087,87+ | Q32: 2022-01-03 | R32: 1567 | S32: 15.1880001 | T32: ='091015'!S32 -> 15.65599786 | U32: ='141015'!S32 -> 15.93399846
A33: ODF23 | B33: F23 | C33: 271739 | D33: 269659 | E33: 1038 | F33: 10120 | G33: 361590575 | H33: 35007.05 | I33: 36094.09 | J33: 15.58 | K33: 15.18 | L33: 15,610 | M33: 15.333 | N33: 15.21 | O33: 36075.16 | P33: 1.068,11+ | Q33: 2023-01-02 | R33: 1818 | S33: 15.17999943 | T33: ='091015'!S33 -> 15.65999992 | U33: ='141015'!S33 -> 15.92999831
A34: ODF24 | B34: F24 | C34: 34645 | D34: 34500 | E34: 96 | F34: 3725 | G34: 116301968 | H34: 30367.04 | I34: 31278.33 | J34: 15.58 | K34: 15.22 | L34: 15,600 | M34: 15.248 | N34: 15.22 | O34: 31261.93 | P34: 894,89+ | Q34: 2024-01-02 | R34: 2067 | S34: 15.2300007 | T34: ='091015'!S34 -> 15.66000199 | U34: ='141015'!S34 -> 15.94099798
A35: ODF25 | B35: F25 | C35: 286067 | D35: 282875 | E35: 1408 | F35: 22655 | G35: 605227401 | H35: 26267.82 | I35: 27113.74 | J35: 15.58 | K35: 15.23 | L35: 15,620 | M35: 15.409 | N35: 15.23 | O35: 27099.52 | P35: 831,70+ | Q35: 2025-01-02 | R35: 2321 | S35: 15.23000092 | T35: ='091015'!S35 -> 15.66000084 | U35: ='141015'!S35 -> 15.95000139

Sheet 091015
A1: 2015-10-09 | B1: VENCTO | C1: CONTR. ABERT.(1) | D1: CONTR. FECH.(2) | E1: NÚM. NEGOC. | F1: CONTR. NEGOC. | G1: VOL. | H1: AJUSTE ANTER. (3) | I1: AJUSTE CORRIG. (4) | J1: PREÇO ABERTU. | K1: PREÇO MÍN. | L1: PREÇO MÁX. | M1: PREÇO MÉD. | N1: ÚLT. PREÇO | O1: AJUSTE | P1: VAR. PTOS.
A2: ODX5 | B2: X15 | C2: 1233527 | D2: 1263042 | E2: 19 | F2: 48045 | G2: 4766746967 | H2: 99214.77 | I2: 99266.15 | J2: 14.17 | K2: 14.155 | L2: 14.174 | M2: 14.172 | N2: 14.155 | O2: 99270 | P2: 0,67- | Q2: 2015-11-02 | R2: =NETWORKDAYS($A$1,Q2,Feriados)-1 -> 14 | S2: =((100000/O2)^(252/R2)-1)*100 -> 14.09736273
A3: ODZ5 | B3: Z15 | C3: 719678 | D3: 729113 | E3: 5 | F3: 12345 | G3: 1211945644 | H3: 98174.82 | I3: 98224.22 | J3: 14.2 | K3: 14.19 | L3: 14.2 | M3: 14.198 | N3: 14.2 | O3: 98172.72 | P3: 2,10- | Q3: 2015-12-01 | R3: 35 | S3: =((100000/O3)^(252/R3)-1)*100 -> 14.19999065
A4: ODF6 | B4: F16 | C4: 3512339 | D4: 3618127 | E4: 2258 | F4: 209740 | G4: 20348340969 | H4: 97017.39 | I4: 97069.12 | J4: 14.302 | K4: 14.27 | L4: 14.38 | M4: 14.326 | N4: 14.305 | O4: 97018.22 | P4: 0,83+ | Q4: 2016-01-04 | R4: 57 | S4: 14.32000699
A5: ODG6 | B5: G16 | C5: 113485 | D5: 113460 | E5: 6 | F5: 385 | G5: 36941589 | H5: 95984.76 | I5: 96002.52 | J5: 14.48 | K5: 14.48 | L5: 14.48 | M5: 14.48 | N5: 14.48 | O5: 95952.18 | P5: 32,58- | Q5: 2016-02-01 | R5: 77 | S5: 14.47999301
A6: ODH6 | B6: H16 | C6: 69025 | D6: 69300 | E6: 6 | F6: 550 | G6: 52210570 | H6: 94953.74 | I6: 94978.11 | J6: 14.64 | K6: 14.64 | L6: 14.64 | M6: 14.64 | N6: 14.64 | O6: 94928.31 | P6: 25,43- | Q6: 2016-03-01 | R6: 96 | S6: 14.63999495
A7: ODJ6 | B7: J16 | C7: 1077872 | D7: 1074190 | E7: 799 | F7: 71180 | G7: 6672570712 | H7: 93748.97 | I7: 93779.22 | J7: 14.74 | K7: 14.735 | L7: 14.87 | M7: 14.798 | N7: 14.82 | O7: 93730.05 | P7: 18,92- | Q7: 2016-04-01 | R7: 118 | S7: 14.82999345
A8: ODK6 | B8: K16 | C8: 48480 | D8: 48800 | E8: 8 | F8: 820 | G8: 75952754 | H8: 92671.37 | I8: 92673.9 | J8: 15.015 | K8: 15.015 | L8: 15.015 | M8: 15.015 | N8: 15.015 | O8: 92625.31 | P8: 46,06- | Q8: 2016-05-02 | R8: 138 | S8: 15.01500627
A9: ODM6 | B9: M16 | C9: 51905 | D9: 51810 | E9: 4 | F9: 545 | G9: 49858807 | H9: 91541.4 | I9: 91532.04 | J9: 15.15 | K9: 15.15 | L9: 15.15 | M9: 15.15 | N9: 15.15 | O9: 91484.05 | P9: 57,35- | Q9: 2016-06-01 | R9: 159 | S9: 15.1499946
A10: ODN6 | B10: N16 | C10: 890131 | D10: 904531 | E10: 1224 | F10: 35395 | G10: 3198017517 | H10: 90406.48 | I10: 90377.89 | J10: 15.015 | K10: 14.95 | L10: 15.33 | M10: 15.171 | N10: 15.225 | O10: 90330.5 | P10: 75,98- | Q10: 2016-07-01 | R10: 181 | S10: 15.2100083
A11: ODV6 | B11: V16 | C11: 382367 | D11: 382024 | E11: 156 | F11: 18725 | G11: 1629503127 | H11: 87084.16 | I11: 86959.98 | J11: 15.13 | K11: 15.125 | L11: 15.46 | M11: 15.303 | N11: 15.445 | O11: 86914.38 | P11: 169,78- | Q11: 2016-10-03 | R11: 246 | S11: 15.44999896
A12: ODF7 | B12: F17 | C12: 1886997 | D12: 1877142 | E12: 10387 | F12: 218230 | G12: 18323048959 | H12: 84088.51 | I12: 83842.27 | J12: 15.18 | K12: 15.12 | L12: 15.62 | M12: 15.376 | N12: 15.56 | O12: 83798.31 | P12: 290,20- | Q12: 2017-01-02 | R12: 308 | S12: 15.55999502
A13: ODJ17 | B13: J17 | C13: 80735 | D13: 79495 | E13: 33 | F13: 2115 | G13: 170893126 | H13: 81067.12 | I13: 80731.36 | J13: 15.26 | K13: 15.26 | L13: 15.69 | M13: 15.582 | N13: 15.69 | O13: 80689.03 | P13: 378,09- | Q13: 2017-04-03 | R13: 371 | S13: 15.68999837
A14: ODN17 | B14: N17 | C14: 529705 | D14: 529025 | E14: 786 | F14: 7920 | G14: 617156984 | H14: 78201.14 | I14: 77817.52 | J14: 15.34 | K14: 15.34 | L14: 15.8 | M14: 15.662 | N14: 15.75 | O14: 77776.72 | P14: 424,42- | Q14: 2017-07-03 | R14: 432 | S14: 15.78999964
A15: ODV17 | B15: V17 | C15: 161652 | D15: 162382 | E15: 127 | F15: 6215 | G15: 466379510 | H15: 75339.84 | I15: 74884.22 | J15: 15.39 | K15: 15.39 | L15: 15.86 | M15: 15.706 | N15: 15.86 | O15: 74844.96 | P15: 494,88- | Q15: 2017-10-02 | R15: 496 | S15: 15.86000362
A16: ODF18 | B16: F18 | C16: 968783 | D16: 961570 | E16: 7289 | F16: 93755 | G16: 6800231104 | H16: 72733.86 | I16: 72152.57 | J16: 15.42 | K16: 15.38 | L16: 15.94 | M16: 15.638 | N16: 15.86 | O16: 72114.74 | P16: 619,12- | Q16: 2018-01-02 | R16: 557 | S16: 15.93999785
A17: ODJ18 | B17: J18 | C17: 79480 | D17: 79525 | E17: 12 | F17: 360 | G17: 25050099 | H17: 70227.07 | I17: 69600.34 | J17: 15.41 | K17: 15.41 | L17: 15.95 | M17: 15.937 | N17: 15.95 | O17: 69563.85 | P17: 663,22- | Q17: 2018-04-02 | R17: 618 | S17: 15.95000214
A18: ODN18 | B18: N18 | C18: 417605 | D18: 417735 | E18: 403 | F18: 3555 | G18: 239207316 | H18: 67694.56 | I18: 67025.5 | J18: 15.45 | K18: 15.44 | L18: 15.99 | M18: 15.79 | N18: 15.87 | O18: 66990.36 | P18: 704,20- | Q18: 2018-07-02 | R18: 681 | S18: 15.98000132
A19: ODV18 | B19: V18 | C19: 24569 | D19: 24624 | E19: 16 | F19: 350 | G19: 22640414 | H19: 65286.07 | I19: 64565.35 | J19: 15.42 | K19: 15.42 | L19: 15.97 | M19: 15.876 | N19: 15.97 | O19: 64531.5 | P19: 754,57- | Q19: 2018-10-01 | R19: 745 | S19: 15.97000066
A20: ODF19 | B20: F19 | C20: 875425 | D20: 871386 | E20: 5379 | F20: 53875 | G20: 3379855059 | H20: 63033.01 | I20: 62288.57 | J20: 15.4 | K20: 15.39 | L20: 15.97 | M20: 15.673 | N20: 15.85 | O20: 62255.91 | P20: 777,10- | Q20: 2019-01-02 | R20: 807 | S20: 15.94999827
A21: ODJ19 | B21: J19 | C21: 30973 | D21: 31028 | E21: 3 | F21: 55 | G21: 3331863 | H21: 60901.32 | I21: 60116.36 | J21: 15.52 | K21: 15.52 | L21: 15.74 | M21: 15.663 | N21: 15.74 | O21: 60084.84 | P21: 816,48- | Q21: 2019-04-01 | R21: 868 | S21: 15.93899797
A22: ODN19 | B22: N19 | C22: 228108 | D22: 228258 | E22: 86 | F22: 1695 | G22: 98575371 | H22: 58808.33 | I22: 57984.85 | J22: 15.51 | K22: 15.51 | L22: 15.93 | M22: 15.821 | N22: 15.85 | O22: 57954.45 | P22: 853,88- | Q22: 2019-07-01 | R22: 930 | S22: 15.93000055
A23: ODV19 | B23: V19 | C23: 24890 | D23: 24915 | E23: 2 | F23: 35 | G23: 1964106 | H23: 56707.89 | I23: 55988.81 | J23: 15.49 | K23: 15.49 | L23: 15.84 | M23: 15.739 | N23: 15.84 | O23: 55959.45 | P23: 748,44- | Q23: 2019-10-01 | R23: 996 | S23: 15.82199947
A24: ODF20 | B24: F20 | C24: 178623 | D24: 178188 | E24: 995 | F24: 6780 | G24: 368838764 | H24: 54742.11 | I24: 54119.27 | J24: 15.33 | K24: 15.29 | L24: 15.89 | M24: 15.573 | N24: 15.72 | O24: 54090.89 | P24: 651,22- | Q24: 2020-01-02 | R24: 1060 | S24: 15.73000242
A25: ODJ20 | B25: J20 | C25: 13944 | D25: 13944 | E25: 1 | F25: 10 | G25: 527674 | H25: 52893.55 | I25: 52254.84 | J25: 15.44 | K25: 15.44 | L25: 15.44 | M25: 15.44 | N25: 15.44 | O25: 52227.44 | P25: 666,11- | Q25: 2020-04-01 | R25: 1122 | S25: 15.70700213
A26: ODN20 | B26: N20 | C26: 22800 | D26: 22800 | E26: 4 | F26: 20 | G26: 1020129 | H26: 51135.16 | I26: 50482.63 | J26: 15.4 | K26: 15.4 | L26: 15.46 | M26: 15.42 | N26: 15.46 | O26: 50456.16 | P26: 679,00- | Q26: 2020-07-01 | R26: 1183 | S26: 15.68699762
A27: ODV20 | B27: V20 | C27: 15150 | D27: 15150 | E27: 0 | F27: 0 | G27: 0 | H27: 49327.54 | I27: 48662.04 | J27: 0 | K27: 0 | L27: 0 | M27: 0 | N27: 0 | O27: 48636.53 | P27: 691,01- | Q27: 2020-10-01 | R27: 1248 | S27: 15.66700184
A28: ODF21 | B28: F21 | C28: 1104782 | D28: 1100195 | E28: 8813 | F28: 101955 | G28: 4820991166 | H28: 47635.49 | I28: 46959.14 | J28: 15.25 | K28: 15.2 | L28: 15.79 | M28: 15.485 | N28: 15.6 | O28: 46934.52 | P28: 700,97- | Q28: 2021-01-01 | R28: 1310 | S28: 15.66283475
A29: ODJ21 | B29: J21 | C29: 690 | D29: 690 | E29: 0 | F29: 0 | G29: 0 | H29: 46019.91 | I29: 45330.86 | J29: 0 | K29: 0 | L29: 0 | M29: 0 | N29: 0 | O29: 45307.09 | P29: 712,82- | Q29: 2021-04-01 | R29: 1372 | S29: 15.65200135
A30: ODN21 | B30: N21 | C30: 1680 | D30: 1690 | E30: 4 | F30: 25 | G30: 1108705 | H30: 44433.99 | I30: 43735.58 | J30: 15.36 | K30: 15.36 | L30: 15.36 | M30: 15.36 | N30: 15.36 | O30: 43712.65 | P30: 721,34- | Q30: 2021-07-01 | R30: 1434 | S30: 15.65300062
A31: ODV21 | B31: V21 | C31: 460 | D31: 460 | E31: 0 | F31: 0 | G31: 0 | H31: 42829.98 | I31: 42121.11 | J31: 0 | K31: 0 | L31: 0 | M31: 0 | N31: 0 | O31: 42099.02 | P31: 730,96- | Q31: 2021-10-01 | R31: 1499 | S31: 15.65500079
A32: ODF22 | B32: F22 | C32: 26213 | D32: 26208 | E32: 31 | F32: 180 | G32: 7422540 | H32: 41330.59 | I32: 40614.91 | J32: 15.23 | K32: 15.23 | L32: 15.44 | M32: 15.363 | N32: 15.41 | O32: 40593.61 | P32: 736,98- | Q32: 2022-01-03 | R32: 1562 | S32: 15.65599786
A33: ODF23 | B33: F23 | C33: 240728 | D33: 238792 | E33: 804 | F33: 7860 | G33: 279615677 | H33: 35860.19 | I33: 35128.52 | J33: 15.26 | K33: 15.23 | L33: 15.77 | M33: 15.449 | N33: 15.62 | O33: 35110.1 | P33: 750,09- | Q33: 2023-01-02 | R33: 1813 | S33: 15.65999992
A34: ODF24 | B34: F24 | C34: 34330 | D34: 34355 | E34: 44 | F34: 230 | G34: 7109172 | H34: 31087.22 | I34: 30424.87 | J34: 15.27 | K34: 15.26 | L34: 15.67 | M34: 15.429 | N34: 15.67 | O34: 30408.92 | P34: 678,30- | Q34: 2024-01-02 | R34: 2062 | S34: 15.66000199
A35: ODF25 | B35: F25 | C35: 274731 | D35: 273306 | E35: 996 | F35: 11785 | G35: 311820065 | H35: 26873.12 | I35: 26275.09 | J35: 15.24 | K35: 15.24 | L35: 15.82 | M35: 15.566 | N35: 15.6 | O35: 26261.31 | P35: 611,81- | Q35: 2025-01-02 | R35: 2316 | S35: 15.66000084

Sheet 141015
A1: 2015-10-14 | B1: VENCTO | C1: CONTR. ABERT.(1) | D1: CONTR. FECH.(2) | E1: NÚM. NEGOC. | F1: CONTR. NEGOC. | G1: VOL. | H1: AJUSTE ANTER. (3) | I1: AJUSTE CORRIG. (4) | J1: PREÇO ABERTU. | K1: PREÇO MÍN. | L1: PREÇO MÁX. | M1: PREÇO MÉD. | N1: ÚLT. PREÇO | O1: AJUSTE | P1: VAR. PTOS.
A2: ODX5 | B2: X15 | C2: 1268216 | D2: 1296761 | E2: 27 | F2: 37355 | G2: 3710070837 | H2: 99.319,49 | I2: 99.371,34 | J2: 14,155 | K2: 14,151 | L2: 14,161 | M2: 14,158 | N2: 14,151 | O2: 99.319,24 | P2: 0,25- | Q2: 2015-11-02 | R2: =NETWORKDAYS($A$1,Q2,Feriados)-1 -> 12 | S2: 14.13
A3: ODZ5 | B3: Z15 | C3: 750206 | D3: 755081 | E3: 29 | F3: 12250 | G3: 1203885926 | H3: 98.275,99 | I3: 98.328,92 | J3: 14,205 | K3: 14,185 | L3: 14,205 | M3: 14,198 | N3: 14,185 | O3: 98.277,36 | P3: 1,37+ | Q3: 2015-12-01 | R3: 33 | S3: =((100000/O3)^(252/R3)-1)*100 -> 14.18996991
A4: ODF6 | B4: F16 | C4: 3647128 | D4: 3693218 | E4: 725 | F4: 126110 | G4: 12247272207 | H4: 97.111,25 | I4: 97.166,71 | J4: 14,350 | K4: 14,330 | L4: 14,400 | M4: 14,350 | N4: 14,341 | O4: 97.115,76 | P4: 4,51+ | Q4: 2016-01-04 | R4: 55 | S4: 14.3500143
A5: ODG6 | B5: G16 | C5: 113345 | D5: 115545 | E5: 13 | F5: 3825 | G5: 367361403 | H5: 96.029,26 | I5: 96.090,62 | J5: 14,520 | K5: 14,520 | L5: 14,540 | M5: 14,532 | N5: 14,540 | O5: 96.040,24 | P5: 10,98+ | Q5: 2016-02-01 | R5: 75 | S5: 14.53998576
A6: ODH6 | B6: H16 | C6: 69088 | D6: 68903 | E6: 94 | F6: 4075 | G6: 387235835 | H6: 95.012,44 | I6: 95.074,97 | J6: 14,670 | K6: 14,630 | L6: 14,670 | M6: 14,653 | N6: 14,630 | O6: 95.025,12 | P6: 12,68+ | Q6: 2016-03-01 | R6: 94 | S6: 14.65998413
A7: ODJ6 | B7: J16 | C7: 1064194 | D7: 1063411 | E7: 355 | F7: 33965 | G7: 3186454575 | H7: 93.800,36 | I7: 93.878,43 | J7: 14,910 | K7: 14,805 | L7: 14,950 | M7: 14,876 | N7: 14,830 | O7: 93.829,21 | P7: 28,85+ | Q7: 2016-04-01 | R7: 116 | S7: 14.83999912
A8: ODK6 | B8: K16 | C8: 46025 | D8: 44050 | E8: 86 | F8: 8790 | G8: 815041003 | H8: 92.705,65 | I8: 92.783,39 | J8: 15,050 | K8: 14,990 | L8: 15,050 | M8: 15,025 | N8: 14,990 | O8: 92.734,74 | P8: 29,09+ | Q8: 2016-05-02 | R8: 136 | S8: 14.99998856
A9: ODM6 | B9: M16 | C9: 52110 | D9: 52505 | E9: 5 | F9: 905 | G9: 82879085 | H9: 91.538,45 | I9: 91.627,14 | J9: 15,165 | K9: 15,165 | L9: 15,165 | M9: 15,165 | N9: 15,165 | O9: 91.579,10 | P9: 40,65+ | Q9: 2016-06-01 | R9: 157 | S9: 15.16499003
A10: ODN6 | B10: N16 | C10: 905809 | D10: 913231 | E10: 1405 | F10: 41720 | G10: 3770084348 | H10: 90.339,09 | I10: 90.451,63 | J10: 15,390 | K10: 15,185 | L10: 15,400 | M10: 15,328 | N10: 15,195 | O10: 90.404,20 | P10: 65,11+ | Q10: 2016-07-01 | R10: 179 | S10: 15.25999823
A11: ODV6 | B11: V16 | C11: 384819 | D11: 388074 | E11: 109 | F11: 9335 | G11: 811719616 | H11: 86.870,58 | I11: 87.004,46 | J11: 15,650 | K11: 15,475 | L11: 15,650 | M11: 15,531 | N11: 15,475 | O11: 86.958,84 | P11: 88,26+ | Q11: 2016-10-03 | R11: 244 | S11: 15.52499961
A12: ODF7 | B12: F17 | C12: 1914929 | D12: 1953964 | E12: 10688 | F12: 251486 | G12: 21070624215 | H12: 83.678,63 | I12: 83.912,10 | J12: 15,850 | K12: 15,500 | L12: 15,850 | M12: 15,685 | N12: 15,520 | O12: 83.868,10 | P12: 189,47+ | Q12: 2017-01-02 | R12: 306 | S12: 15.590004
A13: ODJ17 | B13: J17 | C13: 79535 | D13: 79675 | E13: 16 | F13: 865 | G13: 69766881 | H13: 80.512,25 | I13: 80.753,24 | J13: 15,910 | K13: 15,720 | L13: 15,910 | M13: 15,814 | N13: 15,720 | O13: 80.710,90 | P13: 198,65+ | Q13: 2017-04-03 | R13: 369 | S13: 15.75999632
A14: ODN17 | B14: N17 | C14: 529590 | D14: 531250 | E14: 1081 | F14: 27430 | G14: 2130100019 | H14: 77.507,57 | I14: 77.816,36 | J14: 16,090 | K14: 15,860 | L14: 16,120 | M14: 15,975 | N14: 15,860 | O14: 77.775,56 | P14: 267,99+ | Q14: 2017-07-03 | R14: 430 | S14: 15.86999628
A15: ODV17 | B15: V17 | C15: 163002 | D15: 163177 | E15: 128 | F15: 9400 | G15: 701503423 | H15: 74.497,95 | I15: 74.845,08 | J15: 16,180 | K15: 15,900 | L15: 16,200 | M15: 16,101 | N15: 15,900 | O15: 74.805,84 | P15: 307,89+ | Q15: 2017-10-02 | R15: 494 | S15: 15.9599994
A16: ODF18 | B16: F18 | C16: 953958 | D16: 957643 | E16: 9760 | F16: 108017 | G16: 7770690294 | H16: 71.920,91 | I16: 72.141,36 | J16: 16,190 | K16: 15,940 | L16: 16,240 | M16: 16,130 | N16: 15,950 | O16: 72.103,53 | P16: 182,62+ | Q16: 2018-01-02 | R16: 555 | S16: 16.00999677
A17: ODJ18 | B17: J18 | C17: 79590 | D17: 80155 | E17: 26 | F17: 1345 | G17: 93296951 | H17: 69.323,15 | I17: 69.531,07 | J17: 16,180 | K17: 16,000 | L17: 16,240 | M17: 16,141 | N17: 16,000 | O17: 69.494,61 | P17: 171,46+ | Q17: 2018-04-02 | R17: 616 | S17: 16.05299669
A18: ODN18 | B18: N18 | C18: 417505 | D18: 418255 | E18: 223 | F18: 4220 | G18: 281677412 | H18: 66.738,37 | I18: 66.933,22 | J18: 16,290 | K18: 16,080 | L18: 16,310 | M18: 16,187 | N18: 16,080 | O18: 66.898,13 | P18: 159,76+ | Q18: 2018-07-02 | R18: 679 | S18: 16.09000028
A19: ODV18 | B19: V18 | C19: 24674 | D19: 25704 | E19: 84 | F19: 3240 | G19: 208507949 | H19: 64.177,60 | I19: 64.444,51 | J19: 16,160 | K19: 16,090 | L19: 16,250 | M19: 16,125 | N19: 16,090 | O19: 64.410,72 | P19: 233,12+ | Q19: 2018-10-01 | R19: 743 | S19: 16.09000018
A20: ODF19 | B20: F19 | C20: 879892 | D20: 889445 | E20: 6640 | F20: 92660 | G20: 5739078521 | H20: 61.999,63 | I20: 62.104,75 | J20: 16,190 | K20: 16,030 | L20: 16,280 | M20: 16,179 | N20: 16,030 | O20: 62.072,19 | P20: 72,56+ | Q20: 2019-01-02 | R20: 805 | S20: 16.10000064
A21: ODJ19 | B21: J19 | C21: 31668 | D21: 33563 | E21: 88 | F21: 2120 | G21: 126601503 | H21: 59.776,53 | I21: 59.909,49 | J21: 16,220 | K21: 16,090 | L21: 16,250 | M21: 16,186 | N21: 16,090 | O21: 59.878,08 | P21: 101,55+ | Q21: 2019-04-01 | R21: 866 | S21: 16.09499783
A22: ODN19 | B22: N19 | C22: 238633 | D22: 246358 | E22: 475 | F22: 23155 | G22: 1332705588 | H22: 57.687,99 | I22: 57.758,82 | J22: 16,170 | K22: 16,090 | L22: 16,250 | M22: 16,184 | N22: 16,100 | O22: 57.728,54 | P22: 40,55+ | Q22: 2019-07-01 | R22: 928 | S22: 16.08999728
A23: ODV19 | B23: V19 | C23: 25115 | D23: 24845 | E23: 111 | F23: 1165 | G23: 64608434 | H23: 55.576,78 | I23: 55.626,65 | J23: 16,130 | K23: 16,050 | L23: 16,200 | M23: 16,121 | N23: 16,050 | O23: 55.597,48 | P23: 20,70+ | Q23: 2019-10-01 | R23: 994 | S23: 16.04699966
A24: ODF20 | B24: F20 | C24: 186283 | D24: 185795 | E24: 2382 | F24: 22775 | G24: 1217357874 | H24: 53.603,54 | I24: 53.635,13 | J24: 16,110 | K24: 15,950 | L24: 16,190 | M24: 16,090 | N24: 15,950 | O24: 53.607,01 | P24: 3,47+ | Q24: 2020-01-02 | R24: 1058 | S24: 16.00999978
A25: ODJ20 | B25: J20 | C25: 13949 | D25: 14929 | E25: 4 | F25: 1280 | G25: 65909456 | H25: 51.720,01 | I25: 51.750,46 | J25: 16,110 | K25: 15,990 | L25: 16,130 | M25: 16,107 | N25: 15,990 | O25: 51.723,33 | P25: 3,32+ | Q25: 2020-04-01 | R25: 1120 | S25: 15.98999844
A26: ODN20 | B26: N20 | C26: 23300 | D26: 23706 | E26: 8 | F26: 1975 | G26: 98426028 | H26: 49.932,22 | I26: 49.961,59 | J26: 16,030 | K26: 15,960 | L26: 16,080 | M26: 16,021 | N26: 15,960 | O26: 49.935,39 | P26: 3,17+ | Q26: 2020-07-01 | R26: 1181 | S26: 15.97200116
A27: ODV20 | B27: V20 | C27: 15155 | D27: 15055 | E27: 4 | F27: 1070 | G27: 51223762 | H27: 48.094,67 | I27: 48.122,92 | J27: 16,060 | K27: 15,990 | L27: 16,080 | M27: 16,065 | N27: 15,990 | O27: 48.097,69 | P27: 3,02+ | Q27: 2020-10-01 | R27: 1246 | S27: 15.95500096
A28: ODF21 | B28: F21 | C28: 1092318 | D28: 1069083 | E28: 9353 | F28: 124033 | G28: 5736597078 | H28: 46.378,49 | I28: 46.405,71 | J28: 15,940 | K28: 15,850 | L28: 16,100 | M28: 16,003 | N28: 15,860 | O28: 46.381,38 | P28: 2,89+ | Q28: 2021-01-01 | R28: 1308 | S28: 15.95311307
A29: ODJ21 | B29: J21 | C29: 690 | D29: 690 | E29: 0 | F29: 0 | G29: 0 | H29: 44.760,03 | I29: 44.777,90 | J29: 0,000 | K29: 0,000 | L29: 0,000 | M29: 0,000 | N29: 0,000 | O29: 44.754,42 | P29: 5,61- | Q29: 2021-04-01 | R29: 1370 | S29: 15.93799864
A30: ODN21 | B30: N21 | C30: 1690 | D30: 1690 | E30: 0 | F30: 0 | G30: 0 | H30: 43.173,80 | I30: 43.180,07 | J30: 0,000 | K30: 0,000 | L30: 0,000 | M30: 0,000 | N30: 0,000 | O30: 43.157,43 | P30: 16,37- | Q30: 2021-07-01 | R30: 1432 | S30: 15.93700142
A31: ODV21 | B31: V21 | C31: 460 | D31: 460 | E31: 0 | F31: 0 | G31: 0 | H31: 41.571,66 | I31: 41.568,34 | J31: 0,000 | K31: 0,000 | L31: 0,000 | M31: 0,000 | N31: 0,000 | O31: 41.546,54 | P31: 25,12- | Q31: 2021-10-01 | R31: 1497 | S31: 15.93500162
A32: ODF22 | B32: F22 | C32: 26213 | D32: 26208 | E32: 40 | F32: 205 | G32: 8183799 | H32: 40.074,85 | I32: 40.061,97 | J32: 15,960 | K32: 15,880 | L32: 16,030 | M32: 15,990 | N32: 15,910 | O32: 40.040,96 | P32: 33,89- | Q32: 2022-01-03 | R32: 1560 | S32: 15.93399846
A33: ODF23 | B33: F23 | C33: 241497 | D33: 239872 | E33: 1148 | F33: 16080 | G33: 553663564 | H33: 34.628,80 | I33: 34.584,69 | J33: 15,970 | K33: 15,870 | L33: 16,080 | M33: 15,993 | N33: 15,870 | O33: 34.566,56 | P33: 62,24- | Q33: 2023-01-02 | R33: 1811 | S33: 15.92999831
A34: ODF24 | B34: F24 | C34: 34420 | D34: 34455 | E34: 26 | F34: 135 | G34: 4011160 | H34: 29.884,27 | I34: 29.861,77 | J34: 16,000 | K34: 15,880 | L34: 16,080 | M34: 16,005 | N34: 15,880 | O34: 29.846,11 | P34: 38,16- | Q34: 2024-01-02 | R34: 2060 | S34: 15.94099798
A35: ODF25 | B35: F25 | C35: 274161 | D35: 269824 | E35: 968 | F35: 17924 | G35: 457052241 | H35: 25.712,72 | I35: 25.707,45 | J35: 16,060 | K35: 15,900 | L35: 16,110 | M35: 16,046 | N35: 15,900 | O35: 25.693,97 | P35: 18,75- | Q35: 2025-01-02 | R35: 2314 | S35: 15.95000139

Sheet 161015
A1: 2015-10-16 | B1: VENCTO | C1: CONTR. ABERT.(1) | D1: CONTR. FECH.(2) | E1: NÚM. NEGOC. | F1: CONTR. NEGOC. | G1: VOL. | H1: AJUSTE ANTER. (3) | I1: AJUSTE CORRIG. (4) | J1: PREÇO ABERTU. | K1: PREÇO MÍN. | L1: PREÇO MÁX. | M1: PREÇO MÉD. | N1: ÚLT. PREÇO | O1: AJUSTE | P1: VAR. PTOS.
A2: ODX5 | B2: X15 | C2: 1328201 | D2: 1334295 | E2: 16 | F2: 11640 | G2: 1157294244 | H2: 99.423,86 | I2: 99.476,06 | J2: 14.169 | K2: 14.145 | L2: 14.169 | M2: 14.152 | N2: 14.15 | O2: 99423.9 | P2: 0,04+ | Q2: 2015-11-02 | R2: =NETWORKDAYS($A$1,Q2,Feriados)-1 -> 10 | S2: 14.13
A3: ODZ5 | B3: Z15 | C3: 770361 | D3: 774376 | E3: 36 | F3: 22675 | G3: 2230803967 | H3: 98.382,89 | I3: 98.434,11 | J3: 14.18 | K3: 14.175 | L3: 14.2 | M3: 14.183 | N3: 14.2 | O3: 98382.5 | P3: 0,39- | Q3: 2015-12-01 | R3: 31 | S3: =((100000/O3)^(252/R3)-1)*100 -> 14.17499241
A4: ODF6 | B4: F16 | C4: 3708380 | D4: 3749853 | E4: 1352 | F4: 146175 | G4: 14212003219 | H4: 97.230,27 | I4: 97.276,61 | J4: 14.301 | K4: 14.281 | L4: 14.379 | M4: 14.312 | N4: 14.35 | O4: 97225.61 | P4: 4,66- | Q4: 2016-01-04 | R4: 53 | S4: 14.31400074
A5: ODG6 | B5: G16 | C5: 114965 | D5: 115430 | E5: 36 | F5: 3810 | G5: 366396234 | H5: 96.179,40 | I5: 96.220,98 | J5: 14.455 | K5: 14.39 | L5: 14.46 | M5: 14.445 | N5: 14.45 | O5: 96170.53 | P5: 8,87- | Q5: 2016-02-01 | R5: 73 | S5: 14.43000384
A6: ODH6 | B6: H16 | C6: 69113 | D6: 69149 | E6: 3 | F6: 40 | G6: 3806467 | H6: 95.169,49 | I6: 95.209,18 | J6: 14.55 | K6: 14.55 | L6: 14.55 | M6: 14.55 | N6: 14.55 | O6: 95159.26 | P6: 10,23- | Q6: 2016-03-01 | R6: 92 | S6: 14.55798552
A7: ODJ6 | B7: J16 | C7: 1068722 | D7: 1070457 | E7: 238 | F7: 30361 | G7: 2853236942 | H7: 93.982,30 | I7: 94.024,19 | J7: 14.7 | K7: 14.69 | L7: 14.84 | M7: 14.719 | N7: 14.84 | O7: 93974.89 | P7: 7,41- | Q7: 2016-04-01 | R7: 114 | S7: 14.72500063
A8: ODK6 | B8: K16 | C8: 44465 | D8: 45080 | E8: 11 | F8: 715 | G8: 66428083 | H8: 92.917,13 | I8: 92.955,15 | J8: 14.84 | K8: 14.84 | L8: 14.84 | M8: 14.84 | N8: 14.84 | O8: 92906.41 | P8: 10,72- | Q8: 2016-05-02 | R8: 134 | S8: 14.84000455
A9: ODM6 | B9: M16 | C9: 53625 | D9: 54035 | E9: 10 | F9: 1510 | G9: 138554217 | H9: 91.777,19 | I9: 91.805,90 | J9: 15.01 | K9: 15.01 | L9: 15.01 | M9: 15.01 | N9: 15.01 | O9: 91757.76 | P9: 19,43- | Q9: 2016-06-01 | R9: 155 | S9: 15.00999165
A10: ODN6 | B10: N16 | C10: 903028 | D10: 889398 | E10: 887 | F10: 46675 | G10: 4228375046 | H10: 90.605,37 | I10: 90.642,03 | J10: 15.12 | K10: 15.03 | L10: 15.27 | M10: 15.105 | N10: 15.26 | O10: 90594.5 | P10: 10,87- | Q10: 2016-07-01 | R10: 177 | S10: 15.10000891
A11: ODV6 | B11: Q16 | C11: 14055 | D11: 13865 | E11: 2 | F11: 210 | G11: 18793844 | H11: 89.499,16 | I11: 89.537,69 | J11: 15.17 | K11: 15.17 | L11: 15.23 | M11: 15.173 | N11: 15.23 | O11: 89490.74 | P11: 8,42- | Q11: 2016-10-03 | R11: 242 | S11: 12.25728677
A12: ODF7 | B12: U16 | C12: 6895 | D12: 11010 | E12: 25 | F12: 4610 | G12: 407118676 | H12: 88.303,55 | I12: 88.343,84 | J12: 15.22 | K12: 15.16 | L12: 15.3 | M12: 15.226 | N12: 15.3 | O12: 88297.52 | P12: 6,03- | Q12: 2017-01-02 | R12: 304 | S12: 10.86790573
A13: ODJ17 | B13: V16 | C13: 390889 | D13: 397887 | E13: 594 | F13: 18270 | G13: 1593606986 | H13: 87.225,40 | I13: 87.267,40 | J13: 15.295 | K13: 15.22 | L13: 15.35 | M13: 15.295 | N13: 15.35 | O13: 87221.64 | P13: 3,76- | Q13: 2017-04-03 | R13: 367 | S13: 9.84246512
A14: ODN17 | B14: X16 | C14: 13755 | D14: 13770 | E14: 1 | F14: 15 | G14: 1292692 | H14: 86.222,57 | I14: 86.263,57 | J14: 15.38 | K14: 15.38 | L14: 15.38 | M14: 15.38 | N14: 15.38 | O14: 86218.34 | P14: 4,23- | Q14: 2017-07-03 | R14: 428 | S14: 9.123417588
A15: ODV17 | B15: Z16 | C15: 15635 | D15: 15645 | E15: 1 | F15: 10 | G15: 851900 | H15: 85.231,07 | I15: 85.271,10 | J15: 15.4 | K15: 15.4 | L15: 15.4 | M15: 15.4 | N15: 15.4 | O15: 85226.39 | P15: 4,68- | Q15: 2017-10-02 | R15: 492 | S15: 8.532451005
A16: ODF18 | B16: F17 | C16: 1954204 | D16: 1971730 | E16: 9800 | F16: 307873 | G16: 25900470723 | H16: 84.154,17 | I16: 84.193,12 | J16: 15.42 | K16: 15.29 | L16: 15.65 | M16: 15.405 | N16: 15.56 | O16: 84148.98 | P16: 5,19- | Q16: 2018-01-02 | R16: 553 | S16: 8.181986426
A17: ODJ18 | B17: G17 | C17: 5550 | D17: 5560 | E17: 1 | F17: 10 | G17: 830300 | H17: 83.055,18 | I17: 83.096,90 | J17: 15.46 | K17: 15.46 | L17: 15.46 | M17: 15.46 | N17: 15.46 | O17: 83053.33 | P17: 1,85- | Q17: 2018-04-02 | R17: 614 | S17: 7.918961618
A18: ODN18 | B18: H17 | C18: 5100 | D18: 5115 | E18: 1 | F18: 15 | G18: 1232290 | H18: 82.166,39 | I18: 82.210,39 | J18: 15.49 | K18: 15.49 | L18: 15.49 | M18: 15.49 | N18: 15.49 | O18: 82167.29 | P18: 0,90+ | Q18: 2018-07-02 | R18: 677 | S18: 7.584979475
A19: ODV18 | B19: J17 | C19: 79465 | D19: 84115 | E19: 109 | F19: 6745 | G19: 546641506 | H19: 81.045,40 | I19: 81.091,82 | J19: 15.41 | K19: 15.41 | L19: 15.55 | M19: 15.525 | N19: 15.55 | O19: 81049.3 | P19: 3,90+ | Q19: 2018-10-01 | R19: 741 | S19: 7.407012633
A20: ODF19 | B20: N17 | C20: 529526 | D20: 529820 | E20: 585 | F20: 9650 | G20: 753798145 | H20: 78.148,69 | I20: 78.182,22 | J20: 15.68 | K20: 15.54 | L20: 15.86 | M20: 15.654 | N20: 15.86 | O20: 78141.23 | P20: 7,46- | Q20: 2019-01-02 | R20: 803 | S20: 8.047982232
A21: ODJ19 | B21: V17 | C21: 167797 | D21: 165336 | E21: 108 | F21: 10935 | G21: 821341987 | H21: 75.218,66 | I21: 75.211,43 | J21: 15.69 | K21: 15.69 | L21: 16.07 | M21: 15.788 | N21: 16 | O21: 75171.99 | P21: 46,67- | Q21: 2019-04-01 | R21: 864 | S21: 8.680172616
A22: ODN19 | B22: F18 | C22: 974493 | D22: 971953 | E22: 8311 | F22: 140971 | G22: 10221922705 | H22: 72.609,74 | I22: 72.541,66 | J22: 15.81 | K22: 15.63 | L22: 16.13 | M22: 15.775 | N22: 16.05 | O22: 72503.62 | P22: 106,12- | Q22: 2019-07-01 | R22: 926 | S22: 9.14440218
A23: ODV19 | B23: J18 | C23: 80985 | D23: 81000 | E23: 40 | F23: 405 | G23: 28313100 | H23: 70.011,55 | I23: 69.969,70 | J23: 15.83 | K23: 15.67 | L23: 15.89 | M23: 15.826 | N23: 15.89 | O23: 69933.01 | P23: 78,54- | Q23: 2019-10-01 | R23: 992 | S23: 9.510490976
A24: ODF20 | B24: N18 | C24: 418070 | D24: 418245 | E24: 497 | F24: 4725 | G24: 317987977 | H24: 67.425,07 | I24: 67.370,51 | J24: 15.9 | K24: 15.75 | L24: 16.26 | M24: 15.883 | N24: 16.26 | O24: 67335.19 | P24: 89,88- | Q24: 2020-01-02 | R24: 1056 | S24: 9.897467126
A25: ODJ20 | B25: V18 | C25: 25784 | D25: 25804 | E25: 7 | F25: 85 | G25: 5500473 | H25: 64.913,10 | I25: 64.852,12 | J25: 15.93 | K25: 15.92 | L25: 15.98 | M25: 15.953 | N25: 15.98 | O25: 64818.12 | P25: 94,98- | Q25: 2020-04-01 | R25: 1118 | S25: 10.26662858
A26: ODN20 | B26: F19 | C26: 906090 | D26: 896630 | E26: 7125 | F26: 90927 | G26: 5672787074 | H26: 62.570,41 | I26: 62.503,74 | J26: 15.92 | K26: 15.76 | L26: 16.31 | M26: 15.958 | N26: 16.18 | O26: 62470.97 | P26: 99,44- | Q26: 2020-07-01 | R26: 1179 | S26: 10.57878775
A27: ODV20 | B27: J19 | C27: 33593 | D27: 33063 | E27: 21 | F27: 180 | G27: 10810326 | H27: 60.361,57 | I27: 60.328,98 | J27: 15.96 | K27: 15.85 | L27: 16.29 | M27: 16.034 | N27: 16.29 | O27: 60297.35 | P27: 64,22- | Q27: 2020-10-01 | R27: 1244 | S27: 10.79126066
A28: ODF21 | B28: N19 | C28: 249653 | D28: 248588 | E28: 333 | F28: 3055 | G28: 177572895 | H28: 58.197,70 | I28: 58.194,81 | J28: 15.91 | K28: 15.84 | L28: 16.23 | M28: 15.911 | N28: 16.23 | O28: 58164.3 | P28: 33,40- | Q28: 2021-01-01 | R28: 1306 | S28: 11.02245914
A29: ODJ21 | B29: V19 | C29: 24560 | D29: 24350 | E29: 9 | F29: 90 | G29: 5033904 | H29: 56.067,72 | I29: 56.028,04 | J29: 15.82 | K29: 15.82 | L29: 15.99 | M29: 15.905 | N29: 15.99 | O29: 55998.66 | P29: 69,06- | Q29: 2021-04-01 | R29: 1368 | S29: 11.27262422
A30: ODN21 | B30: F20 | C30: 186129 | D30: 186093 | E30: 1345 | F30: 8540 | G30: 460568701 | H30: 54.076,15 | I30: 54.009,85 | J30: 15.9 | K30: 15.73 | L30: 16.27 | M30: 15.876 | N30: 16.06 | O30: 53981.53 | P30: 94,62- | Q30: 2021-07-01 | R30: 1430 | S30: 11.47686936
A31: ODV21 | B31: J20 | C31: 15229 | D31: 15229 | E31: 0 | F31: 0 | G31: 0 | H31: 52.211,30 | I31: 52.141,67 | J31: 0 | K31: 0 | L31: 0 | M31: 0 | N31: 0 | O31: 52114.33 | P31: 96,97- | Q31: 2021-10-01 | R31: 1495 | S31: 11.61183065
A32: ODF22 | B32: N20 | C32: 24556 | D32: 24536 | E32: 17 | F32: 90 | G32: 4533883 | H32: 50.439,48 | I32: 50.366,90 | J32: 15.8 | K32: 15.73 | L32: 15.84 | M32: 15.783 | N32: 15.84 | O32: 50340.49 | P32: 98,99- | Q32: 2022-01-03 | R32: 1558 | S32: 11.74127197
A33: ODF23 | B33: V20 | C33: 15055 | D33: 15065 | E33: 3 | F33: 15 | G33: 725656 | H33: 48.617,55 | I33: 48.542,12 | J33: 15.81 | K33: 15.81 | L33: 15.92 | M33: 15.847 | N33: 15.92 | O33: 48516.67 | P33: 100,88- | Q33: 2023-01-02 | R33: 1809 | S33: 10.6003445
A34: ODF24 | B34: F21 | C34: 1065356 | D34: 1037835 | E34: 10742 | F34: 147780 | G34: 6908870996 | H34: 46.914,02 | I34: 46.836,13 | J34: 15.83 | K34: 15.64 | L34: 16.2 | M34: 15.789 | N34: 16.03 | O34: 46811.57 | P34: 102,45- | Q34: 2024-01-02 | R34: 2058 | S34: 9.739989277
A35: ODF25 | B35: J21 | C35: 690 | D35: 690 | E35: 0 | F35: 0 | G35: 0 | H35: 45.281,63 | I35: 45.205,97 | J35: 0 | K35: 0 | L35: 0 | M35: 0 | N35: 0 | O35: 45182.27 | P35: 99,36- | Q35: 2025-01-02 | R35: 2312 | S35: 9.045384719
B36: N21 | C36: 1695 | D36: 1710 | E36: 2 | F36: 15 | G36: 654621 | H36: 43.682,52 | I36: 43.607,22 | J36: 15.75 | K36: 15.7 | L36: 15.75 | M36: 15.733 | N36: 15.7 | O36: 43584.36 | P36: 98,16-
B37: V21 | C37: 460 | D37: 460 | E37: 0 | F37: 0 | G37: 0 | H37: 42.064,39 | I37: 41.991,79 | J37: 0 | K37: 0 | L37: 0 | M37: 0 | N37: 0 | O37: 41969.77 | P37: 94,62-
B38: F22 | C38: 25518 | D38: 25428 | E38: 143 | F38: 860 | G38: 34688385 | H38: 40.554,95 | I38: 40.483,19 | J38: 15.81 | K38: 15.66 | L38: 16.14 | M38: 15.819 | N38: 16.04 | O38: 40461.96 | P38: 92,99-
B39: N22 | C39: 505 | D39: 505 | E39: 0 | F39: 0 | G39: 0 | H39: 37.739,86 | I39: 37.670,37 | J39: 0 | K39: 0 | L39: 0 | M39: 0 | N39: 0 | O39: 37650.62 | P39: 89,24-
B40: F23 | C40: 242112 | D40: 243865 | E40: 1093 | F40: 6995 | G40: 244121933 | H40: 35.058,57 | I40: 34.991,97 | J40: 15.86 | K40: 15.66 | L40: 16.18 | M40: 15.794 | N40: 16.04 | O40: 34973.62 | P40: 84,95-
B41: N23 | C41: 815 | D41: 815 | E41: 0 | F41: 0 | G41: 0 | H41: 32.608,75 | I41: 32.534,81 | J41: 0 | K41: 0 | L41: 0 | M41: 0 | N41: 0 | O41: 32517.75 | P41: 91,00-
B42: F24 | C42: 34475 | D42: 34310 | E42: 71 | F42: 430 | G42: 12964133 | H42: 30.312,33 | I42: 30.233,78 | J42: 15.81 | K42: 15.64 | L42: 16.13 | M42: 15.814 | N42: 16.13 | O42: 30217.93 | P42: 94,40-
B43: N24 | C43: 0 | D43: 0 | E43: 0 | F43: 0 | G43: 0 | H43: 28.194,18 | I43: 28.111,55 | J43: 0 | K43: 0 | L43: 0 | M43: 0 | N43: 0 | O43: 28096.81 | P43: 97,37-
B44: F25 | C44: 270064 | D44: 272686 | E44: 2417 | F44: 28200 | G44: 734367049 | H44: 26.133,39 | I44: 26.045,16 | J44: 15.88 | K44: 15.67 | L44: 16.17 | M44: 15.795 | N44: 16.06 | O44: 26031.5 | P44: 101,89-
B45: F26 | C45: 9800 | D45: 9800 | E45: 0 | F45: 0 | G45: 0 | H45: 22.524,68 | I45: 22.438,94 | J45: 0 | K45: 0 | L45: 0 | M45: 0 | N45: 0 | O45: 22427.17 | P45: 97,51-
B46: F29 | C46: 10 | D46: 10 | E46: 0 | F46: 0 | G46: 0 | H46: 14.517,91 | I46: 14.444,10 | J46: 0 | K46: 0 | L46: 0 | M46: 0 | N46: 0 | O46: 14436.53 | P46: 81,38-
B47: F30 | C47: 200 | D47: 200 | E47: 0 | F47: 0 | G47: 0 | H47: 12.551,66 | I47: 12.482,50 | J47: 0 | K47: 0 | L47: 0 | M47: 0 | N47: 0 | O47: 12475.96 | P47: 75,70-

Sheet Feriado
A1: 39814 | B1: 39867 | C1: 39868 | D1: 39913 | E1: 39924 | F1: 39934 | G1: 39975 | H1: 40063 | I1: 40098 | J1: 40119 | K1: 40132 | L1: 40172
A2: 40179 | B2: 40224 | C2: 40225 | D2: 40270 | E2: 40289 | F2: 40299 | G2: 40332 | H2: 40428 | I2: 40463 | J2: 40484 | K2: 40497 | L2: 40537
A3: 40544 | B3: 40609 | C3: 40610 | D3: 40654 | E3: 40655 | F3: 40664 | G3: 40717 | H3: 40793 | I3: 40828 | J3: 40849 | K3: 40862 | L3: 40902
A4: 40909 | B4: 40959 | C4: 40960 | D4: 41005 | E4: 41020 | F4: 41030 | G4: 41067 | H4: 41159 | I4: 41194 | J4: 41215 | K4: 41228 | L4: 41268
A5: 41275 | B5: 41316 | C5: 41317 | D5: 41362 | E5: 41385 | F5: 41395 | G5: 41424 | H5: 41524 | I5: 41559 | J5: 41580 | K5: 41593 | L5: 41633
A6: 41640 | B6: 41701 | C6: 41702 | D6: 41747 | E6: 41750 | F6: 41760 | G6: 41809 | H6: 41889 | I6: 41924 | J6: 41945 | K6: 41958 | L6: 41998
A7: 42005 | B7: 42051 | C7: 42052 | D7: 42097 | E7: 42115 | F7: 42125 | G7: 42159 | H7: 42254 | I7: 42289 | J7: 42310 | K7: 42323 | L7: 42363
A8: 42370 | B8: 42408 | C8: 42409 | D8: 42454 | E8: 42481 | F8: 42491 | G8: 42516 | H8: 42620 | I8: 42655 | J8: 42676 | K8: 42689 | L8: 42729
A9: 42736 | B9: 42793 | C9: 42794 | D9: 42839 | E9: 42846 | F9: 42856 | G9: 42901 | H9: 42985 | I9: 43020 | J9: 43041 | K9: 43054 | L9: 43094
A10: 43101 | B10: 43143 | C10: 43144 | D10: 43189 | E10: 43211 | F10: 43221 | G10: 43251 | H10: 43350 | I10: 43385 | J10: 43406 | K10: 43419 | L10: 43459
A11: 43466 | B11: 43528 | C11: 43529 | D11: 43574 | E11: 43576 | F11: 43586 | G11: 43636 | H11: 43715 | I11: 43750 | J11: 43771 | K11: 43784 | L11: 43824
A12: 43831 | B12: 43885 | C12: 43886 | D12: 43931 | E12: 43942 | F12: 43952 | G12: 43993 | H12: 44081 | I12: 44116 | J12: 44137 | K12: 44150 | L12: 44190
A13: 44197 | B13: 44242 | C13: 44243 | D13: 44288 | E13: 44307 | F13: 44317 | G13: 44350 | H13: 44446 | I13: 44481 | J13: 44502 | K13: 44515 | L13: 44555
A14: 44562 | B14: 44620 | C14: 44621 | D14: 44666 | E14: 44672 | F14: 44682 | G14: 44728 | H14: 44811 | I14: 44846 | J14: 44867 | K14: 44880 | L14: 44920
A15: 44927 | B15: 44977 | C15: 44978 | D15: 45023 | E15: 45037 | F15: 45047 | G15: 45085 | H15: 45176 | I15: 45211 | J15: 45232 | K15: 45245 | L15: 45285
A16: 45292 | B16: 45334 | C16: 45335 | D16: 45380 | E16: 45403 | F16: 45413 | G16: 45442 | H16: 45542 | I16: 45577 | J16: 45598 | K16: 45611 | L16: 45651
A17: 45658 | B17: 45719 | C17: 45720 | D17: 45765 | E17: 45768 | F17: 45778 | G17: 45827 | H17: 45907 | I17: 45942 | J17: 45963 | K17: 45976 | L17: 46016
A18: 46023 | B18: 46069 | C18: 46070 | D18: 46115 | E18: 46133 | F18: 46143 | G18: 46177 | H18: 46272 | I18: 46307 | J18: 46328 | K18: 46341 | L18: 46381
A19: 46388 | B19: 46426 | C19: 46427 | D19: 46472 | E19: 46498 | F19: 46508 | G19: 46534 | H19: 46637 | I19: 46672 | J19: 46693 | K19: 46706 | L19: 46746
A20: 46753 | B20: 46811 | C20: 46812 | D20: 46857 | E20: 46864 | F20: 46874 | G20: 46919 | H20: 47003 | I20: 47038 | J20: 47059 | K20: 47072 | L20: 47112
A21: 47119 | B21: 47161 | C21: 47162 | D21: 47207 | E21: 47229 | F21: 47239 | G21: 47269 | H21: 47368 | I21: 47403 | J21: 47424 | K21: 47437 | L21: 47477
A22: 47484 | B22: 47546 | C22: 47547 | D22: 47592 | E22: 47594 | F22: 47604 | G22: 47654 | H22: 47733 | I22: 47768 | J22: 47789 | K22: 47802 | L22: 47842
A23: 47849 | B23: 47903 | C23: 47904 | D23: 47949 | E23: 47959 | F23: 47969 | G23: 48011 | H23: 48098 | I23: 48133 | J23: 48154 | K23: 48167 | L23: 48207
A24: 48214 | B24: 48253 | C24: 48254 | D24: 48299 | E24: 48325 | F24: 48335 | G24: 48361 | H24: 48464 | I24: 48499 | J24: 48520 | K24: 48533 | L24: 48573
A25: 48580 | B25: 48638 | C25: 48639 | D25: 48684 | E25: 48690 | F25: 48700 | G25: 48746 | H25: 48829 | I25: 48864 | J25: 48885 | K25: 48898 | L25: 48938
A26: 48945 | B26: 48995 | C26: 48996 | D26: 49041 | E26: 49055 | F26: 49065 | G26: 49103 | H26: 49194 | I26: 49229 | J26: 49250 | K26: 49263 | L26: 49303
A27: 49310 | B27: 49345 | C27: 49346 | D27: 49391 | E27: 49420 | F27: 49430 | G27: 49453 | H27: 49559 | I27: 49594 | J27: 49615 | K27: 49628 | L27: 49668
A28: 49675 | B28: 49730 | C28: 49731 | D28: 49776 | E28: 49786 | F28: 49796 | G28: 49838 | H28: 49925 | I28: 49960 | J28: 49981 | K28: 49994 | L28: 50034
A29: 50041 | B29: 50087 | C29: 50088 | D29: 50133 | E29: 50151 | F29: 50161 | G29: 50195 | H29: 50290 | I29: 50325 | J29: 50346 | K29: 50359 | L29: 50399
A30: 50406 | B30: 50472 | C30: 50473 | D30: 50516 | E30: 50518 | F30: 50526 | G30: 50580 | H30: 50655 | I30: 50690 | J30: 50711 | K30: 50724 | L30: 50764
A31: 50771 | B31: 50822 | C31: 50823 | D31: 50868 | E31: 50881 | F31: 50891 | G31: 50930 | H31: 51020 | I31: 51055 | J31: 51076 | K31: 51089 | L31: 51129
A32: 51136 | B32: 51179 | C32: 51180 | D32: 51225 | E32: 51247 | F32: 51257 | G32: 51287 | H32: 51386 | I32: 51421 | J32: 51442 | K32: 51455 | L32: 51495
A33: 51502 | B33: 51564 | C33: 51565 | D33: 51610 | E33: 51612 | F33: 51622 | G33: 51672 | H33: 51751 | I33: 51786 | J33: 51807 | K33: 51820 | L33: 51860
A34: 51867 | B34: 51914 | C34: 51915 | D34: 51960 | E34: 51977 | F34: 51987 | G34: 52022 | H34: 52116 | I34: 52151 | J34: 52172 | K34: 52185 | L34: 52225
A35: 52232 | B35: 52271 | C35: 52272 | D35: 52317 | E35: 52342 | F35: 52352 | G35: 52379 | H35: 52481 | I35: 52516 | J35: 52537 | K35: 52550 | L35: 52590
A36: 52597 | B36: 52656 | C36: 52657 | D36: 52702 | E36: 52708 | F36: 52718 | G36: 52764 | H36: 52847 | I36: 52882 | J36: 52903 | K36: 52916 | L36: 52956
A37: 52963 | B37: 53013 | C37: 53014 | D37: 53059 | E37: 53073 | F37: 53083 | G37: 53121 | H37: 53212 | I37: 53247 | J37: 53268 | K37: 53281 | L37: 53321
A38: 53328 | B38: 53363 | C38: 53364 | D38: 53409 | E38: 53438 | F38: 53448 | G38: 53471 | H38: 53577 | I38: 53612 | J38: 53633 | K38: 53646 | L38: 53686
A39: 53693 | B39: 53748 | C39: 53749 | D39: 53794 | E39: 53803 | F39: 53813 | G39: 53856 | H39: 53942 | I39: 53977 | J39: 53998 | K39: 54011 | L39: 54051
A40: 54058 | B40: 54105 | C40: 54106 | D40: 54151 | E40: 54169 | F40: 54179 | G40: 54213 | H40: 54308 | I40: 54343 | J40: 54364 | K40: 54377 | L40: 54417
A41: 54424 | B41: 54483 | C41: 54484 | D41: 54529 | E41: 54534 | F41: 54544 | G41: 54591 | H41: 54673 | I41: 54708 | J41: 54729 | K41: 54742 | L41: 54782
A42: 54789 | B42: 54840 | C42: 54841 | D42: 54886 | E42: 54899 | F42: 54909 | G42: 54948 | H42: 55038 | I42: 55073 | J42: 55094 | K42: 55107 | L42: 55147
A43: 55154 | B43: 55197 | C43: 55198 | D43: 55243 | E43: 55264 | F43: 55274 | G43: 55305 | H43: 55403 | I43: 55438 | J43: 55459 | K43: 55472 | L43: 55512
A44: 55519 | B44: 55582 | C44: 55583 | D44: 55628 | E44: 55630 | F44: 55640 | G44: 55690 | H44: 55769 | I44: 55804 | J44: 55825 | K44: 55838 | L44: 55878
A45: 55885 | B45: 55932 | C45: 55933 | D45: 55978 | E45: 55995 | F45: 56005 | G45: 56040 | H45: 56134 | I45: 56169 | J45: 56190 | K45: 56203 | L45: 56243
A46: 56250 | B46: 56289 | C46: 56290 | D46: 56335 | E46: 56360 | F46: 56370 | G46: 56397 | H46: 56499 | I46: 56534 | J46: 56555 | K46: 56568 | L46: 56608
A47: 56615 | B47: 56674 | C47: 56675 | D47: 56720 | E47: 56725 | F47: 56735 | G47: 56782 | H47: 56864 | I47: 56899 | J47: 56920 | K47: 56933 | L47: 56973
A48: 56980 | B48: 57024 | C48: 57025 | D48: 57070 | E48: 57091 | F48: 57101 | G48: 57132 | H48: 57230 | I48: 57265 | J48: 57286 | K48: 57299 | L48: 57339
A49: 57346 | B49: 57409 | C49: 57410 | D49: 57455 | E49: 57456 | F49: 57466 | G49: 57517 | H49: 57595 | I49: 57630 | J49: 57651 | K49: 57664 | L49: 57704
A50: 57711 | B50: 57766 | C50: 57767 | D50: 57812 | E50: 57821 | F50: 57831 | G50: 57874 | H50: 57960 | I50: 57995 | J50: 58016 | K50: 58029 | L50: 58069
A51: 58076 | B51: 58116 | C51: 58117 | D51: 58162 | E51: 58186 | F51: 58196 | G51: 58224 | H51: 58325 | I51: 58360 | J51: 58381 | K51: 58394 | L51: 58434
A52: 58441 | B52: 58501 | C52: 58502 | D52: 58547 | E52: 58552 | F52: 58562 | G52: 58609 | H52: 58691 | I52: 58726 | J52: 58747 | K52: 58760 | L52: 58800
A53: 58807 | B53: 58858 | C53: 58859 | D53: 58904 | E53: 58917 | F53: 58927 | G53: 58966 | H53: 59056 | I53: 59091 | J53: 59112 | K53: 59125 | L53: 59165
A54: 59172 | B54: 59208 | C54: 59209 | D54: 59254 | E54: 59282 | F54: 59292 | G54: 59316 | H54: 59421 | I54: 59456 | J54: 59477 | K54: 59490 | L54: 59530
A55: 59537 | B55: 59593 | C55: 59594 | D55: 59639 | E55: 59647 | F55: 59657 | G55: 59701 | H55: 59786 | I55: 59821 | J55: 59842 | K55: 59855 | L55: 59895
A56: 59902 | B56: 59950 | C56: 59951 | D56: 59996 | E56: 60013 | F56: 60023 | G56: 60058 | H56: 60152 | I56: 60187 | J56: 60208 | K56: 60221 | L56: 60261
A57: 60268 | B57: 60307 | C57: 60308 | D57: 60353 | E57: 60378 | F57: 60388 | G57: 60415 | H57: 60517 | I57: 60552 | J57: 60573 | K57: 60586 | L57: 60626
A58: 60633 | B58: 60685 | C58: 60686 | D58: 60731 | E58: 60743 | F58: 60753 | G58: 60793 | H58: 60882 | I58: 60917 | J58: 60938 | K58: 60951 | L58: 60991
A59: 60998 | B59: 61042 | C59: 61043 | D59: 61088 | E59: 61108 | F59: 61118 | G59: 61150 | H59: 61247 | I59: 61282 | J59: 61303 | K59: 61316 | L59: 61356
A60: 61363 | B60: 61427 | C60: 61428 | D60: 61473 | E60: 61474 | F60: 61484 | G60: 61535 | H60: 61613 | I60: 61648 | J60: 61669 | K60: 61682 | L60: 61722
A61: 61729 | B61: 61784 | C61: 61785 | D61: 61830 | E61: 61839 | F61: 61849 | G61: 61892 | H61: 61978 | I61: 62013 | J61: 62034 | K61: 62047 | L61: 62087
A62: 62094 | B62: 62134 | C62: 62135 | D62: 62180 | E62: 62204 | F62: 62214 | G62: 62242 | H62: 62343 | I62: 62378 | J62: 62399 | K62: 62412 | L62: 62452

Sheet Curva CC
A1: Liq. | B1: 2014-04-16 | D1: DÓLAR | G1: CUPOM | J1: JUROS | M1: Título de Renda Fixa
A2: Venc | B2: 2014-12-01 | D2: Spot | E2: =(E4-E3)/1000 -> 2.246 | G2: C. Curto | H2: =C27 -> 0.3353975664 | J2: DI-Curto | K2: =C35 -> 10.93 | M2: COTAÇÂO | N2: =100/(1+N3/100)^((N4)/360) -> 99.30937812
D3: Casado | E3: 8 | G3: FRA | H3: =Cubic_Spline(E36:E50,F36:F50,B6) -> 1.149999976 | J3: DI-Longo | K3: =Cubic_Spline(B35:B50,C35:C50,B5) -> 11.10000038 | M3: TIR | N3: =((1+H4*B4/36000)^(360/N4)-1)*100 -> 1.114998627
A4: DC | B4: =B2-$B$1 -> 229 | D4: 1º Futuro | E4: 2254 | G4: LINEAR | H4: =(F29-1)*36000/B4 -> 1.093243972 | J4: Prêmio | K4: 100 | M4: Dias 30/360 | N4: =DAYS360($B$1,B2) -> 225
A5: DU | B5: 159 | D5: US$ VENC | E5: =(1+K3/100)^(B5/252)*E2/F27 -> 2.383655065 | J5: Taxa pré | K5: =((((((1+K3/100)^(1/252)-1)*K4/100)+1)^252)-1)*100 -> 11.10000038
A6: DC FRA | B6: =B4-E35 -> 213
D7: Var. Cambial | E7: =(E5/$E$2-1)*36000/B4 -> 9.634949925
A9: PRÉ | F9: DU
F10: =B5 -> 159
C11: DI CURTO | K11: DI LONGO
C12: =K2 -> 10.93 | K12: =K5 -> 11.10000038
C13: =B35 -> 9 | K13: =F10-C13 -> 150
A16: CÂMBIO | F16: DC
F17: =B4 -> 229
A18: SPOT | C18: DÓLAR CURTO | K18: DÓLAR LONGO
A19: =E2 -> 2.246 | C19: =E4/1000 -> 2.254 | K19: =E5 -> 2.383655065
C20: =E35 -> 16 | K20: =F17-C20 -> 213
A23: CUPOM CAMBIAL
C25: CUPOM CURTO | K25: FRA
C26: =IF(C13=0,1,((1+C12/100)^(C13/252))*E2/C19) -> 1.000149066 | F26: CURVA | K26: =(K27/36000*K20)+1 -> 1.006804167
C27: =IF(C20=0,0,(C26-1)*36000/C20) -> 0.3353975664 | F27: =C26*K26 -> 1.006954246 | K27: =H3 -> 1.149999976
F28: CC + PRÊMIO
F29: =((((((1+K3/100)^(1/252)-1)*K4/100)+1)^(F10)))*A19/K19 -> 1.006954246
H33: fator FRA | I33: fator DI | J33: fator TERMO | K33: VAR. CAMB. FRA | L33: DC | M33: DOLAR | N33: NDF | P33: fator CC | Q33: DC | R33: Cupom Cambial
A34: Data | B34: DU | C34: Taxa | E34: DC | F34: Taxa | L34: =1 -> 1 | M34: =E2 -> 2.246 | N34: 2.243
A35: 2014-05-02 | B35: 9 | C35: 10.93 | E35: =A35-B1 -> 16 | I35: =(1+C35/100)^(B35/252) -> 1.003711484 | L35: =E35 -> 16 | M35: =E4/1000 -> 2.254 | N35: 2.249 | Q35: =L35 -> 16 | R35: =C27 -> 0.3353975664
A36: 2014-06-02 | B36: 30 | C36: 10.91 | E36: =A36-$A$35 -> 31 | F36: 0.64 | H36: =1+F36*E36/36000 -> 1.000551111 | I36: =(1+C36/100)^(B36/252) -> 1.012403541 | J36: =I36/$I$35 -> 1.008659915 | K36: =J36/H36 -> 1.008104338 | L36: =E36+$L$35 -> 47 | M36: =K36*$E$4/1000 -> 2.272267177 | N36: 2.267 | P36: =H36*$C$26 -> 1.000700259 | Q36: 47 | R36: =(P36-1)*36000/Q36 -> 0.5363684792
A37: 2014-07-01 | B37: 50 | C37: 10.95 | E37: 60 | F37: 0.73 | H37: =1+F37*E37/36000 -> 1.001216667 | I37: =(1+C37/100)^(B37/252) -> 1.020830955 | J37: 1.017056167 | K37: =J37/H37 -> 1.015820252 | L37: 76 | M37: 2.289658848 | N37: 2.284 | P37: 1.001365914 | Q37: 76 | R37: 0.6470117123
A38: 2014-08-01 | B38: 73 | C38: 11.01 | E38: 91 | F38: 0.85 | H38: 1.002148611 | I38: 1.030719777 | J38: 1.026908422 | K38: 1.024706726 | L38: 107 | M38: 2.30968896 | N38: 2.304 | P38: 1.002297997 | Q38: 107 | R38: 0.7731578625
A39: 2014-09-01 | B39: 94 | C39: 11.02 | E39: 122 | F39: 1 | H39: 1.003388889 | I39: 1.039765437 | J39: 1.035920634 | K39: 1.032421871 | L39: 138 | M39: 2.327078896 | N39: 2.322 | P39: 1.00353846 | Q39: 138 | R39: 0.923076428
A40: 2014-10-01 | B40: 116 | C40: 11.03 | E40: 152 | F40: 1.01 | H40: 1.004264444 | I40: 1.049341821 | J40: 1.045461607 | K40: 1.041022225 | L40: 168 | M40: 2.346464096 | N40: 2.341 | P40: 1.004414146 | Q40: 168 | R40: 0.9458883667
A41: 2014-11-03 | B41: 139 | C41: 11.06 | E41: 185 | F41: 1.1 | H41: 1.005652778 | I41: 1.059568483 | J41: 1.055650453 | K41: 1.049716638 | L41: 201 | M41: 2.366061303 | N41: 2.361 | P41: 1.005802686 | Q41: 201 | R41: 1.039287044
A42: 2014-12-01 | B42: 159 | C42: 11.1 | E42: 213 | F42: 1.15 | H42: 1.006804167 | I42: 1.06866945 | J42: 1.064717766 | K42: 1.057522209 | L42: 229 | M42: 2.383655059 | N42: 2.378 | P42: 1.006954247 | Q42: 229 | R42: 1.093243994
A43: 2015-01-02 | B43: 181 | C43: 11.14 | E43: 245 | F43: 1.21 | H43: 1.008234722 | I43: 1.078814044 | J43: 1.074824848 | K43: 1.066046253 | L43: 261 | M43: 2.402868255 | N43: 2.398 | P43: 1.008385015 | Q43: 261 | R43: 1.156553837
A44: 2015-03-02 | B44: 220 | C44: 11.2 | E44: 304 | F44: 1.28 | H44: 1.010808889 | I44: 1.097110095 | J44: 1.093053245 | K44: 1.081364892 | L44: 320 | M44: 2.437396466 | N44: 2.434 | P44: 1.010959566 | Q44: 320 | R44: 1.232951142
A45: 2015-04-01 | B45: 242 | C45: 11.38 | E45: 334 | F45: 1.33 | H45: 1.012339444 | I45: 1.109046574 | J45: 1.104945585 | K45: 1.091477361 | L45: 350 | M45: 2.460189972 | N45: 2.455 | P45: 1.012490349 | Q45: 350 | R45: 1.284721654
A46: 2015-07-01 | B46: 303 | C46: 11.66 | E46: 425 | F46: 1.47 | H46: 1.017354167 | I46: 1.141803027 | J46: 1.137580914 | K46: 1.118175903 | L46: 441 | M46: 2.520368485 | N46: 2.517 | P46: 1.017505819 | Q46: 441 | R46: 1.429046462
A47: 2015-10-01 | B47: 368 | C47: 11.95 | E47: 517 | F47: 1.56 | H47: 1.022403333 | I47: 1.179208894 | J47: 1.174848462 | K47: 1.149104687 | L47: 533 | M47: 2.590081965 | N47: 2.585 | P47: 1.022555738 | Q47: 533 | R47: 1.523464513
A48: 2016-01-04 | B48: 431 | C48: 12.04 | E48: 612 | F48: 1.65 | H48: 1.02805 | I48: 1.214629082 | J48: 1.210137675 | K48: 1.177119474 | L48: 628 | M48: 2.653227294 | N48: 2.652 | P48: 1.028203247 | Q48: 628 | R48: 1.616746636
A49: 2017-01-02 | B49: 682 | C49: 12.44 | E49: 976 | F49: 2.19 | H49: 1.059373333 | I49: 1.373439605 | J49: 1.368360954 | K49: 1.29167019 | L49: 992 | M49: 2.911424608 | N49: 2.913 | P49: 1.059531249 | Q49: 992 | R49: 2.160408246
A50: 2018-01-02 | B50: 931 | C50: 12.65 | E50: =A50-A35 -> 1341 | F50: 2.77 | H50: 1.1031825 | I50: 1.552808966 | J50: 1.54706705 | K50: 1.402367288 | L50: 1357 | M50: 3.160935866 | N50: 3.162 | P50: 1.103346947 | Q50: 1357 | R50: 2.74170234
